Workbook

Sheet Лист1
L2: Расход труб, шт. | M2: =SUBTOTAL(9,E9:E830)/12050 -> 57.00829876 | N2: 12050 | O2: =N2*N3*M2 -> 274780 | P2: в пересчете на кг
I3: Формулы до 999 стороки | L3: Использ. | M3: =((SUBTOTAL(9,M9:M830)+SUBTOTAL(9,O9:O830)+SUBTOTAL(9,Q9:Q830)+SUBTOTAL(9,S9:S830)+SUBTOTAL(9,G9:G830)))/(SUBTOTAL(9,E9:E830)) -> 0.9484009025 | N3: 0.4 | O3: =O2*M3 -> 260601.6
L4: Отход. | M4: =((SUBTOTAL(9,J9:J830))/(SUBTOTAL(9,E9:E830))) -> 0.05159909746 | O4: =O2*M4 -> 14178.4
L5: Невозвр. отх. | M5: =((SUBTOTAL(9,G9:G830))/(SUBTOTAL(9,E9:E830))) -> 0.0007234878812 | O5: =O2*M5 -> 198.8
A7: Входной контроль | F7: Вычисляемые параметры | K7: Раскрой
A8: Завод | B8: Входн.№ ПСК | C8: Зав. № | D8: Серт. № | E8: Длина трубы, мм | F8: Невозв. отх., % (вход. в исп.) | G8: Рез, мм | H8: Исп., % | I8: Остаток, % | J8: Остаток, мм | K8: Номер раскроя | L8: Сегмент #1 | M8: Длина сегмента, мм | N8: Сегмент #2 | O8: Длина сегмента, мм | P8: Сегмент #3 | Q8: Длина сегмента, мм | R8: Сегмент #4 | S8: Длина сегмента, мм
A9: ЗМЗ | B9: 501 | C9: 435 | D9: 601 | E9: 12150 | F9: =G9/E9 -> 0.002304526749 | G9: =(COUNTA(L9,N9,P9,R9)*7) -> 28 | H9: =(M9+G9+O9+Q9+S9)/E9 -> 0.9905349794 | I9: =J9/E9 -> 0.009465020576 | J9: =(E9-G9)-M9-O9-Q9-S9 -> 115 | K9: 1 | L9: СД2.ВС: С-17.1-1 | M9: 7500 | N9: СД2.ВС: С-1.21-1 | O9: 4500 | P9: S3 | Q9: 3 | R9: S4 | S9: 4
A10: ЗМЗ | B10: 502 | C10: 436 | D10: 602 | E10: 12050 | F10: 0.0005809128631 | G10: 7 | H10: 0.9964315353 | I10: 0.00356846473 | J10: 43 | K10: 2 | L10: СД2.ВС: С-17.1-2 | M10: 12000
A11: ЗМЗ | B11: 503 | C11: 437 | D11: 603 | E11: 12050 | F11: 0.0005809128631 | G11: 7 | H11: 0.7474688797 | I11: 0.2525311203 | J11: 3043 | K11: 3 | L11: СД2.ВС: С-17.1-3 | M11: 9000
E12: 12050 | F12: 0.001161825726 | G12: 14 | H12: 0.9970124481 | I12: 0.002987551867 | J12: 36 | K12: 4 | L12: СД2.ВС: С-1.1-1 | M12: 4500 | N12: СД2.ВС: С-1.2-1 | O12: 7500
E13: 12050 | F13: 0.0005809128631 | G13: 7 | H13: 0.9964315353 | I13: 0.00356846473 | J13: 43 | K13: 5 | L13: СД2.ВС: С-1.1-2 | M13: 12000
E14: 12050 | F14: 0.0005809128631 | G14: 7 | H14: 0.9964315353 | I14: 0.00356846473 | J14: 43 | K14: 6 | L14: СД2.ВС: С-1.1-3 | M14: 12000
E15: 12050 | F15: 0.0005809128631 | G15: 7 | H15: 0.9964315353 | I15: 0.00356846473 | J15: 43 | K15: 7 | L15: СД2.ВС: С-1.2-2 | M15: 12000
E16: 12050 | F16: 0.0005809128631 | G16: 7 | H16: 0.7474688797 | I16: 0.2525311203 | J16: 3043 | K16: 8 | L16: СД2.ВС: С-1.2-3 | M16: 9000
E17: 12050 | F17: 0.001161825726 | G17: 14 | H17: 0.9970124481 | I17: 0.002987551867 | J17: 36 | K17: 9 | L17: СД2.ВС: С-1.3-1 | M17: 4500 | N17: СД2.ВС: С-1.4-1 | O17: 7500
E18: 12050 | F18: 0.0005809128631 | G18: 7 | H18: 0.9964315353 | I18: 0.00356846473 | J18: 43 | K18: 10 | L18: СД2.ВС: С-1.3-2 | M18: 12000
E19: 12050 | F19: 0.0005809128631 | G19: 7 | H19: 0.9964315353 | I19: 0.00356846473 | J19: 43 | K19: 11 | L19: СД2.ВС: С-1.3-3 | M19: 12000
E20: 12050 | F20: 0.0005809128631 | G20: 7 | H20: 0.9964315353 | I20: 0.00356846473 | J20: 43 | K20: 12 | L20: СД2.ВС: С-1.4-2 | M20: 12000
E21: 12050 | F21: 0.0005809128631 | G21: 7 | H21: 0.7474688797 | I21: 0.2525311203 | J21: 3043 | K21: 13 | L21: СД2.ВС: С-1.4-3 | M21: 9000
E22: 12050 | F22: 0.001161825726 | G22: 14 | H22: 0.9970124481 | I22: 0.002987551867 | J22: 36 | K22: 14 | L22: СД2.ВС: С-1.5-1 | M22: 4500 | N22: СД2.ВС: С-1.6-1 | O22: 7500
E23: 12050 | F23: 0.0005809128631 | G23: 7 | H23: 0.9964315353 | I23: 0.00356846473 | J23: 43 | K23: 15 | L23: СД2.ВС: С-1.5-2 | M23: 12000
E24: 12050 | F24: 0.0005809128631 | G24: 7 | H24: 0.9964315353 | I24: 0.00356846473 | J24: 43 | K24: 16 | L24: СД2.ВС: С-1.5-3 | M24: 12000
E25: 12050 | F25: 0.0005809128631 | G25: 7 | H25: 0.9964315353 | I25: 0.00356846473 | J25: 43 | K25: 17 | L25: СД2.ВС: С-1.6-2 | M25: 12000
E26: 12050 | F26: 0.0005809128631 | G26: 7 | H26: 0.7474688797 | I26: 0.2525311203 | J26: 3043 | K26: 18 | L26: СД2.ВС: С-1.6-3 | M26: 9000
E27: 12050 | F27: 0.001161825726 | G27: 14 | H27: 0.9970124481 | I27: 0.002987551867 | J27: 36 | K27: 19 | L27: СД2.ВС: С-1.7-1 | M27: 4500 | N27: СД2.ВС: С-1.8-1 | O27: 7500
E28: 12050 | F28: 0.0005809128631 | G28: 7 | H28: 0.9964315353 | I28: 0.00356846473 | J28: 43 | K28: 20 | L28: СД2.ВС: С-1.7-2 | M28: 12000
E29: 12050 | F29: 0.0005809128631 | G29: 7 | H29: 0.9964315353 | I29: 0.00356846473 | J29: 43 | K29: 21 | L29: СД2.ВС: С-1.7-3 | M29: 12000
E30: 12050 | F30: 0.0005809128631 | G30: 7 | H30: 0.9964315353 | I30: 0.00356846473 | J30: 43 | K30: 22 | L30: СД2.ВС: С-1.8-2 | M30: 12000
E31: 12050 | F31: 0.0005809128631 | G31: 7 | H31: 0.7474688797 | I31: 0.2525311203 | J31: 3043 | K31: 23 | L31: СД2.ВС: С-1.8-3 | M31: 9000
E32: 12050 | F32: 0.001161825726 | G32: 14 | H32: 0.9970124481 | I32: 0.002987551867 | J32: 36 | K32: 24 | L32: СД2.ВС: С-1.9-1 | M32: 4500 | N32: СД2.ВС: С-1.10-1 | O32: 7500
E33: 12050 | F33: 0.0005809128631 | G33: 7 | H33: 0.9964315353 | I33: 0.00356846473 | J33: 43 | K33: 25 | L33: СД2.ВС: С-1.9-2 | M33: 12000
E34: 12050 | F34: 0.0005809128631 | G34: 7 | H34: 0.9964315353 | I34: 0.00356846473 | J34: 43 | K34: 26 | L34: СД2.ВС: С-1.9-3 | M34: 12000
E35: 12050 | F35: 0.0005809128631 | G35: 7 | H35: 0.9964315353 | I35: 0.00356846473 | J35: 43 | K35: 27 | L35: СД2.ВС: С-1.10-2 | M35: 12000
E36: 12050 | F36: 0.0005809128631 | G36: 7 | H36: 0.7474688797 | I36: 0.2525311203 | J36: 3043 | K36: 28 | L36: СД2.ВС: С-1.10-3 | M36: 9000
E37: 12050 | F37: 0.001161825726 | G37: 14 | H37: 0.9970124481 | I37: 0.002987551867 | J37: 36 | K37: 29 | L37: СД2.ВС: С-1.11-1 | M37: 4500 | N37: СД2.ВС: С-1.12-1 | O37: 7500
E38: 12050 | F38: 0.0005809128631 | G38: 7 | H38: 0.9964315353 | I38: 0.00356846473 | J38: 43 | K38: 30 | L38: СД2.ВС: С-1.11-2 | M38: 12000
E39: 12050 | F39: 0.0005809128631 | G39: 7 | H39: 0.9964315353 | I39: 0.00356846473 | J39: 43 | K39: 31 | L39: СД2.ВС: С-1.11-3 | M39: 12000
E40: 12050 | F40: 0.0005809128631 | G40: 7 | H40: 0.9964315353 | I40: 0.00356846473 | J40: 43 | K40: 32 | L40: СД2.ВС: С-1.12-2 | M40: 12000
E41: 12050 | F41: 0.0005809128631 | G41: 7 | H41: 0.7474688797 | I41: 0.2525311203 | J41: 3043 | K41: 33 | L41: СД2.ВС: С-1.12-3 | M41: 9000
E42: 12050 | F42: 0.001161825726 | G42: 14 | H42: 0.9970124481 | I42: 0.002987551867 | J42: 36 | K42: 34 | L42: СД2.ВС: С-1.13-1 | M42: 4500 | N42: СД2.ВС: С-1.14-1 | O42: 7500
E43: 12050 | F43: 0.0005809128631 | G43: 7 | H43: 0.9964315353 | I43: 0.00356846473 | J43: 43 | K43: 35 | L43: СД2.ВС: С-1.13-2 | M43: 12000
E44: 12050 | F44: 0.0005809128631 | G44: 7 | H44: 0.9964315353 | I44: 0.00356846473 | J44: 43 | K44: 36 | L44: СД2.ВС: С-1.13-3 | M44: 12000
E45: 12050 | F45: 0.0005809128631 | G45: 7 | H45: 0.9964315353 | I45: 0.00356846473 | J45: 43 | K45: 37 | L45: СД2.ВС: С-1.14-2 | M45: 12000
E46: 12050 | F46: 0.0005809128631 | G46: 7 | H46: 0.7474688797 | I46: 0.2525311203 | J46: 3043 | K46: 38 | L46: СД2.ВС: С-1.14-3 | M46: 9000
E47: 12050 | F47: 0.001161825726 | G47: 14 | H47: 0.9970124481 | I47: 0.002987551867 | J47: 36 | K47: 39 | L47: СД2.ВС: С-1.15-1 | M47: 4500 | N47: СД2.ВС: С-1.16-1 | O47: 7500
E48: 12050 | F48: 0.0005809128631 | G48: 7 | H48: 0.9964315353 | I48: 0.00356846473 | J48: 43 | K48: 40 | L48: СД2.ВС: С-1.15-2 | M48: 12000
E49: 12050 | F49: 0.0005809128631 | G49: 7 | H49: 0.9964315353 | I49: 0.00356846473 | J49: 43 | K49: 41 | L49: СД2.ВС: С-1.15-3 | M49: 12000
E50: 12050 | F50: 0.0005809128631 | G50: 7 | H50: 0.9964315353 | I50: 0.00356846473 | J50: 43 | K50: 42 | L50: СД2.ВС: С-1.16-2 | M50: 12000
E51: 12050 | F51: 0.0005809128631 | G51: 7 | H51: 0.7474688797 | I51: 0.2525311203 | J51: 3043 | K51: 43 | L51: СД2.ВС: С-1.16-3 | M51: 9000
E52: 12050 | F52: 0.001161825726 | G52: 14 | H52: 0.9970124481 | I52: 0.002987551867 | J52: 36 | K52: 44 | L52: СД2.ВС: С-1.17-1 | M52: 4500 | N52: СД2.ВС: С-1.18-1 | O52: 7500
E53: 12050 | F53: 0.0005809128631 | G53: 7 | H53: 0.9964315353 | I53: 0.00356846473 | J53: 43 | K53: 45 | L53: СД2.ВС: С-1.17-2 | M53: 12000
E54: 12050 | F54: 0.0005809128631 | G54: 7 | H54: 0.9964315353 | I54: 0.00356846473 | J54: 43 | K54: 46 | L54: СД2.ВС: С-1.17-3 | M54: 12000
E55: 12050 | F55: 0.0005809128631 | G55: 7 | H55: 0.9964315353 | I55: 0.00356846473 | J55: 43 | K55: 47 | L55: СД2.ВС: С-1.18-2 | M55: 12000
E56: 12050 | F56: 0.0005809128631 | G56: 7 | H56: 0.7474688797 | I56: 0.2525311203 | J56: 3043 | K56: 48 | L56: СД2.ВС: С-1.18-3 | M56: 9000
E57: 12050 | F57: 0.001161825726 | G57: 14 | H57: 0.9970124481 | I57: 0.002987551867 | J57: 36 | K57: 49 | L57: СД2.ВС: С-1.19-1 | M57: 4500 | N57: СД2.ВС: С-1.20-1 | O57: 7500
E58: 12050 | F58: 0.0005809128631 | G58: 7 | H58: 0.9964315353 | I58: 0.00356846473 | J58: 43 | K58: 50 | L58: СД2.ВС: С-1.19-2 | M58: 12000
E59: 12050 | F59: 0.0005809128631 | G59: 7 | H59: 0.9964315353 | I59: 0.00356846473 | J59: 43 | K59: 51 | L59: СД2.ВС: С-1.19-3 | M59: 12000
E60: 12050 | F60: 0.0005809128631 | G60: 7 | H60: 0.9964315353 | I60: 0.00356846473 | J60: 43 | K60: 52 | L60: СД2.ВС: С-1.20-2 | M60: 12000
E61: 12050 | F61: 0.0005809128631 | G61: 7 | H61: 0.7474688797 | I61: 0.2525311203 | J61: 3043 | K61: 53 | L61: СД2.ВС: С-1.20-3 | M61: 9000
E62: 12050 | F62: 0.0005809128631 | G62: 7 | H62: 0.9964315353 | I62: 0.00356846473 | J62: 43 | K62: 54 | L62: СД2.ВС: С-1.21-2 | M62: 12000
E63: 12050 | F63: 0.0005809128631 | G63: 7 | H63: 0.9964315353 | I63: 0.00356846473 | J63: 43 | K63: 55 | L63: СД2.ВС: С-1.21-3 | M63: 12000
E64: 12050 | F64: 0.001161825726 | G64: 14 | H64: 0.9970124481 | I64: 0.002987551867 | J64: 36 | K64: 56 | L64: СД2.ВС: С-2.1-1 | M64: 4500 | N64: СД2.ВС: С-2.2-1 | O64: 7500
E65: 12050 | F65: 0.0005809128631 | G65: 7 | H65: 0.9964315353 | I65: 0.00356846473 | J65: 43 | K65: 57 | L65: СД2.ВС: С-2.1-2 | M65: 12000

Sheet Лист2
A1: Сегмент | B1: Длина сегмента, мм | C1: Номер раскроя | D1: Завод | E1: Входн.№ ПСК | F1: Зав. № | G1: Серт. №
A2: =INDEX(Лист1!$K$9:$R$68,H2,COUNTIFS(Лист2!$C$1:$C2,Лист2!$C2)*2) -> СД2.ВС: С-17.1-1 | B2: =INDEX(Лист1!$L$9:$S$68,H2,COUNTIFS(Лист2!$C$1:$C2,Лист2!$C2)*2) -> 7500 | C2: =LOOKUP(ROW()-2,MMULT(TRANSPOSE(MMULT((Лист1!$L$9:$R$68<>"")*ISEVEN(COLUMN($L$8:$R$8)),{1;1;1;1;1;1;1}))*(ROW(Лист1!$L$9:$L$68)>TRANSPOSE(ROW(Лист1!$L$9:$L$68))),ROW(Лист1!$L$9:$L$68)^0),Лист1!$K$9:$K$68) -> 1 | D2: =INDEX(Лист1!$A$9:$A$68,$H2) -> ЗМЗ | E2: =INDEX(Лист1!$B$9:$B$68,$H2) -> 501 | F2: =INDEX(Лист1!$C$9:$C$68,$H2) -> 435 | G2: =INDEX(Лист1!$D$9:$D$68,$H2) -> 601 | H2: =MATCH(Лист2!C2,Лист1!$K$9:$K$68,) -> 1
A3: =INDEX(Лист1!$K$9:$R$68,H3,COUNTIFS(Лист2!$C$1:$C3,Лист2!$C3)*2) -> СД2.ВС: С-1.21-1 | B3: =INDEX(Лист1!$L$9:$S$68,H3,COUNTIFS(Лист2!$C$1:$C3,Лист2!$C3)*2) -> 4500 | C3: =LOOKUP(ROW()-2,MMULT(TRANSPOSE(MMULT((Лист1!$L$9:$R$68<>"")*ISEVEN(COLUMN($L$8:$R$8)),{1;1;1;1;1;1;1}))*(ROW(Лист1!$L$9:$L$68)>TRANSPOSE(ROW(Лист1!$L$9:$L$68))),ROW(Лист1!$L$9:$L$68)^0),Лист1!$K$9:$K$68) -> 1 | D3: =INDEX(Лист1!$A$9:$A$68,$H3) -> ЗМЗ | E3: =INDEX(Лист1!$B$9:$B$68,$H3) -> 501 | F3: =INDEX(Лист1!$C$9:$C$68,$H3) -> 435 | G3: =INDEX(Лист1!$D$9:$D$68,$H3) -> 601 | H3: =MATCH(Лист2!C3,Лист1!$K$9:$K$68,) -> 1
A4: =INDEX(Лист1!$K$9:$R$68,H4,COUNTIFS(Лист2!$C$1:$C4,Лист2!$C4)*2) -> S3 | B4: =INDEX(Лист1!$L$9:$S$68,H4,COUNTIFS(Лист2!$C$1:$C4,Лист2!$C4)*2) -> 3 | C4: =LOOKUP(ROW()-2,MMULT(TRANSPOSE(MMULT((Лист1!$L$9:$R$68<>"")*ISEVEN(COLUMN($L$8:$R$8)),{1;1;1;1;1;1;1}))*(ROW(Лист1!$L$9:$L$68)>TRANSPOSE(ROW(Лист1!$L$9:$L$68))),ROW(Лист1!$L$9:$L$68)^0),Лист1!$K$9:$K$68) -> 1 | D4: =INDEX(Лист1!$A$9:$A$68,$H4) -> ЗМЗ | E4: =INDEX(Лист1!$B$9:$B$68,$H4) -> 501 | F4: =INDEX(Лист1!$C$9:$C$68,$H4) -> 435 | G4: =INDEX(Лист1!$D$9:$D$68,$H4) -> 601 | H4: =MATCH(Лист2!C4,Лист1!$K$9:$K$68,) -> 1
A5: =INDEX(Лист1!$K$9:$R$68,H5,COUNTIFS(Лист2!$C$1:$C5,Лист2!$C5)*2) -> S4 | B5: =INDEX(Лист1!$L$9:$S$68,H5,COUNTIFS(Лист2!$C$1:$C5,Лист2!$C5)*2) -> 4 | C5: =LOOKUP(ROW()-2,MMULT(TRANSPOSE(MMULT((Лист1!$L$9:$R$68<>"")*ISEVEN(COLUMN($L$8:$R$8)),{1;1;1;1;1;1;1}))*(ROW(Лист1!$L$9:$L$68)>TRANSPOSE(ROW(Лист1!$L$9:$L$68))),ROW(Лист1!$L$9:$L$68)^0),Лист1!$K$9:$K$68) -> 1 | D5: =INDEX(Лист1!$A$9:$A$68,$H5) -> ЗМЗ | E5: =INDEX(Лист1!$B$9:$B$68,$H5) -> 501 | F5: =INDEX(Лист1!$C$9:$C$68,$H5) -> 435 | G5: =INDEX(Лист1!$D$9:$D$68,$H5) -> 601 | H5: =MATCH(Лист2!C5,Лист1!$K$9:$K$68,) -> 1
A6: =INDEX(Лист1!$K$9:$R$68,H6,COUNTIFS(Лист2!$C$1:$C6,Лист2!$C6)*2) -> СД2.ВС: С-17.1-2 | B6: =INDEX(Лист1!$L$9:$S$68,H6,COUNTIFS(Лист2!$C$1:$C6,Лист2!$C6)*2) -> 12000 | C6: =LOOKUP(ROW()-2,MMULT(TRANSPOSE(MMULT((Лист1!$L$9:$R$68<>"")*ISEVEN(COLUMN($L$8:$R$8)),{1;1;1;1;1;1;1}))*(ROW(Лист1!$L$9:$L$68)>TRANSPOSE(ROW(Лист1!$L$9:$L$68))),ROW(Лист1!$L$9:$L$68)^0),Лист1!$K$9:$K$68) -> 2 | D6: =INDEX(Лист1!$A$9:$A$68,$H6) -> ЗМЗ | E6: =INDEX(Лист1!$B$9:$B$68,$H6) -> 502 | F6: =INDEX(Лист1!$C$9:$C$68,$H6) -> 436 | G6: =INDEX(Лист1!$D$9:$D$68,$H6) -> 602 | H6: =MATCH(Лист2!C6,Лист1!$K$9:$K$68,) -> 2
A7: =INDEX(Лист1!$K$9:$R$68,H7,COUNTIFS(Лист2!$C$1:$C7,Лист2!$C7)*2) -> СД2.ВС: С-17.1-3 | B7: =INDEX(Лист1!$L$9:$S$68,H7,COUNTIFS(Лист2!$C$1:$C7,Лист2!$C7)*2) -> 9000 | C7: =LOOKUP(ROW()-2,MMULT(TRANSPOSE(MMULT((Лист1!$L$9:$R$68<>"")*ISEVEN(COLUMN($L$8:$R$8)),{1;1;1;1;1;1;1}))*(ROW(Лист1!$L$9:$L$68)>TRANSPOSE(ROW(Лист1!$L$9:$L$68))),ROW(Лист1!$L$9:$L$68)^0),Лист1!$K$9:$K$68) -> 3 | D7: =INDEX(Лист1!$A$9:$A$68,$H7) -> ЗМЗ | E7: =INDEX(Лист1!$B$9:$B$68,$H7) -> 503 | F7: =INDEX(Лист1!$C$9:$C$68,$H7) -> 437 | G7: =INDEX(Лист1!$D$9:$D$68,$H7) -> 603 | H7: =MATCH(Лист2!C7,Лист1!$K$9:$K$68,) -> 3
A8: =INDEX(Лист1!$K$9:$R$68,H8,COUNTIFS(Лист2!$C$1:$C8,Лист2!$C8)*2) -> СД2.ВС: С-1.1-1 | B8: =INDEX(Лист1!$L$9:$S$68,H8,COUNTIFS(Лист2!$C$1:$C8,Лист2!$C8)*2) -> 4500 | C8: =LOOKUP(ROW()-2,MMULT(TRANSPOSE(MMULT((Лист1!$L$9:$R$68<>"")*ISEVEN(COLUMN($L$8:$R$8)),{1;1;1;1;1;1;1}))*(ROW(Лист1!$L$9:$L$68)>TRANSPOSE(ROW(Лист1!$L$9:$L$68))),ROW(Лист1!$L$9:$L$68)^0),Лист1!$K$9:$K$68) -> 4 | D8: =INDEX(Лист1!$A$9:$A$68,$H8) -> 0 | E8: =INDEX(Лист1!$B$9:$B$68,$H8) -> 0 | F8: =INDEX(Лист1!$C$9:$C$68,$H8) -> 0 | G8: =INDEX(Лист1!$D$9:$D$68,$H8) -> 0 | H8: =MATCH(Лист2!C8,Лист1!$K$9:$K$68,) -> 4
A9: =INDEX(Лист1!$K$9:$R$68,H9,COUNTIFS(Лист2!$C$1:$C9,Лист2!$C9)*2) -> СД2.ВС: С-1.2-1 | B9: =INDEX(Лист1!$L$9:$S$68,H9,COUNTIFS(Лист2!$C$1:$C9,Лист2!$C9)*2) -> 7500 | C9: =LOOKUP(ROW()-2,MMULT(TRANSPOSE(MMULT((Лист1!$L$9:$R$68<>"")*ISEVEN(COLUMN($L$8:$R$8)),{1;1;1;1;1;1;1}))*(ROW(Лист1!$L$9:$L$68)>TRANSPOSE(ROW(Лист1!$L$9:$L$68))),ROW(Лист1!$L$9:$L$68)^0),Лист1!$K$9:$K$68) -> 4 | D9: =INDEX(Лист1!$A$9:$A$68,$H9) -> 0 | E9: =INDEX(Лист1!$B$9:$B$68,$H9) -> 0 | F9: =INDEX(Лист1!$C$9:$C$68,$H9) -> 0 | G9: =INDEX(Лист1!$D$9:$D$68,$H9) -> 0 | H9: =MATCH(Лист2!C9,Лист1!$K$9:$K$68,) -> 4
A10: =INDEX(Лист1!$K$9:$R$68,H10,COUNTIFS(Лист2!$C$1:$C10,Лист2!$C10)*2) -> СД2.ВС: С-1.1-2 | B10: =INDEX(Лист1!$L$9:$S$68,H10,COUNTIFS(Лист2!$C$1:$C10,Лист2!$C10)*2) -> 12000 | C10: =LOOKUP(ROW()-2,MMULT(TRANSPOSE(MMULT((Лист1!$L$9:$R$68<>"")*ISEVEN(COLUMN($L$8:$R$8)),{1;1;1;1;1;1;1}))*(ROW(Лист1!$L$9:$L$68)>TRANSPOSE(ROW(Лист1!$L$9:$L$68))),ROW(Лист1!$L$9:$L$68)^0),Лист1!$K$9:$K$68) -> 5 | D10: =INDEX(Лист1!$A$9:$A$68,$H10) -> 0 | E10: =INDEX(Лист1!$B$9:$B$68,$H10) -> 0 | F10: =INDEX(Лист1!$C$9:$C$68,$H10) -> 0 | G10: =INDEX(Лист1!$D$9:$D$68,$H10) -> 0 | H10: =MATCH(Лист2!C10,Лист1!$K$9:$K$68,) -> 5
A11: =INDEX(Лист1!$K$9:$R$68,H11,COUNTIFS(Лист2!$C$1:$C11,Лист2!$C11)*2) -> СД2.ВС: С-1.1-3 | B11: =INDEX(Лист1!$L$9:$S$68,H11,COUNTIFS(Лист2!$C$1:$C11,Лист2!$C11)*2) -> 12000 | C11: =LOOKUP(ROW()-2,MMULT(TRANSPOSE(MMULT((Лист1!$L$9:$R$68<>"")*ISEVEN(COLUMN($L$8:$R$8)),{1;1;1;1;1;1;1}))*(ROW(Лист1!$L$9:$L$68)>TRANSPOSE(ROW(Лист1!$L$9:$L$68))),ROW(Лист1!$L$9:$L$68)^0),Лист1!$K$9:$K$68) -> 6 | D11: =INDEX(Лист1!$A$9:$A$68,$H11) -> 0 | E11: =INDEX(Лист1!$B$9:$B$68,$H11) -> 0 | F11: =INDEX(Лист1!$C$9:$C$68,$H11) -> 0 | G11: =INDEX(Лист1!$D$9:$D$68,$H11) -> 0 | H11: =MATCH(Лист2!C11,Лист1!$K$9:$K$68,) -> 6
A12: =INDEX(Лист1!$K$9:$R$68,H12,COUNTIFS(Лист2!$C$1:$C12,Лист2!$C12)*2) -> СД2.ВС: С-1.2-2 | B12: =INDEX(Лист1!$L$9:$S$68,H12,COUNTIFS(Лист2!$C$1:$C12,Лист2!$C12)*2) -> 12000 | C12: =LOOKUP(ROW()-2,MMULT(TRANSPOSE(MMULT((Лист1!$L$9:$R$68<>"")*ISEVEN(COLUMN($L$8:$R$8)),{1;1;1;1;1;1;1}))*(ROW(Лист1!$L$9:$L$68)>TRANSPOSE(ROW(Лист1!$L$9:$L$68))),ROW(Лист1!$L$9:$L$68)^0),Лист1!$K$9:$K$68) -> 7 | D12: =INDEX(Лист1!$A$9:$A$68,$H12) -> 0 | E12: =INDEX(Лист1!$B$9:$B$68,$H12) -> 0 | F12: =INDEX(Лист1!$C$9:$C$68,$H12) -> 0 | G12: =INDEX(Лист1!$D$9:$D$68,$H12) -> 0 | H12: =MATCH(Лист2!C12,Лист1!$K$9:$K$68,) -> 7
A13: =INDEX(Лист1!$K$9:$R$68,H13,COUNTIFS(Лист2!$C$1:$C13,Лист2!$C13)*2) -> СД2.ВС: С-1.2-3 | B13: =INDEX(Лист1!$L$9:$S$68,H13,COUNTIFS(Лист2!$C$1:$C13,Лист2!$C13)*2) -> 9000 | C13: =LOOKUP(ROW()-2,MMULT(TRANSPOSE(MMULT((Лист1!$L$9:$R$68<>"")*ISEVEN(COLUMN($L$8:$R$8)),{1;1;1;1;1;1;1}))*(ROW(Лист1!$L$9:$L$68)>TRANSPOSE(ROW(Лист1!$L$9:$L$68))),ROW(Лист1!$L$9:$L$68)^0),Лист1!$K$9:$K$68) -> 8 | D13: =INDEX(Лист1!$A$9:$A$68,$H13) -> 0 | E13: =INDEX(Лист1!$B$9:$B$68,$H13) -> 0 | F13: =INDEX(Лист1!$C$9:$C$68,$H13) -> 0 | G13: =INDEX(Лист1!$D$9:$D$68,$H13) -> 0 | H13: =MATCH(Лист2!C13,Лист1!$K$9:$K$68,) -> 8
A14: =INDEX(Лист1!$K$9:$R$68,H14,COUNTIFS(Лист2!$C$1:$C14,Лист2!$C14)*2) -> СД2.ВС: С-1.3-1 | B14: =INDEX(Лист1!$L$9:$S$68,H14,COUNTIFS(Лист2!$C$1:$C14,Лист2!$C14)*2) -> 4500 | C14: =LOOKUP(ROW()-2,MMULT(TRANSPOSE(MMULT((Лист1!$L$9:$R$68<>"")*ISEVEN(COLUMN($L$8:$R$8)),{1;1;1;1;1;1;1}))*(ROW(Лист1!$L$9:$L$68)>TRANSPOSE(ROW(Лист1!$L$9:$L$68))),ROW(Лист1!$L$9:$L$68)^0),Лист1!$K$9:$K$68) -> 9 | D14: =INDEX(Лист1!$A$9:$A$68,$H14) -> 0 | E14: =INDEX(Лист1!$B$9:$B$68,$H14) -> 0 | F14: =INDEX(Лист1!$C$9:$C$68,$H14) -> 0 | G14: =INDEX(Лист1!$D$9:$D$68,$H14) -> 0 | H14: =MATCH(Лист2!C14,Лист1!$K$9:$K$68,) -> 9
A15: =INDEX(Лист1!$K$9:$R$68,H15,COUNTIFS(Лист2!$C$1:$C15,Лист2!$C15)*2) -> СД2.ВС: С-1.4-1 | B15: =INDEX(Лист1!$L$9:$S$68,H15,COUNTIFS(Лист2!$C$1:$C15,Лист2!$C15)*2) -> 7500 | C15: =LOOKUP(ROW()-2,MMULT(TRANSPOSE(MMULT((Лист1!$L$9:$R$68<>"")*ISEVEN(COLUMN($L$8:$R$8)),{1;1;1;1;1;1;1}))*(ROW(Лист1!$L$9:$L$68)>TRANSPOSE(ROW(Лист1!$L$9:$L$68))),ROW(Лист1!$L$9:$L$68)^0),Лист1!$K$9:$K$68) -> 9 | D15: =INDEX(Лист1!$A$9:$A$68,$H15) -> 0 | E15: =INDEX(Лист1!$B$9:$B$68,$H15) -> 0 | F15: =INDEX(Лист1!$C$9:$C$68,$H15) -> 0 | G15: =INDEX(Лист1!$D$9:$D$68,$H15) -> 0 | H15: =MATCH(Лист2!C15,Лист1!$K$9:$K$68,) -> 9
A16: =INDEX(Лист1!$K$9:$R$68,H16,COUNTIFS(Лист2!$C$1:$C16,Лист2!$C16)*2) -> СД2.ВС: С-1.3-2 | B16: =INDEX(Лист1!$L$9:$S$68,H16,COUNTIFS(Лист2!$C$1:$C16,Лист2!$C16)*2) -> 12000 | C16: =LOOKUP(ROW()-2,MMULT(TRANSPOSE(MMULT((Лист1!$L$9:$R$68<>"")*ISEVEN(COLUMN($L$8:$R$8)),{1;1;1;1;1;1;1}))*(ROW(Лист1!$L$9:$L$68)>TRANSPOSE(ROW(Лист1!$L$9:$L$68))),ROW(Лист1!$L$9:$L$68)^0),Лист1!$K$9:$K$68) -> 10 | D16: =INDEX(Лист1!$A$9:$A$68,$H16) -> 0 | E16: =INDEX(Лист1!$B$9:$B$68,$H16) -> 0 | F16: =INDEX(Лист1!$C$9:$C$68,$H16) -> 0 | G16: =INDEX(Лист1!$D$9:$D$68,$H16) -> 0 | H16: =MATCH(Лист2!C16,Лист1!$K$9:$K$68,) -> 10
A17: =INDEX(Лист1!$K$9:$R$68,H17,COUNTIFS(Лист2!$C$1:$C17,Лист2!$C17)*2) -> СД2.ВС: С-1.3-3 | B17: =INDEX(Лист1!$L$9:$S$68,H17,COUNTIFS(Лист2!$C$1:$C17,Лист2!$C17)*2) -> 12000 | C17: =LOOKUP(ROW()-2,MMULT(TRANSPOSE(MMULT((Лист1!$L$9:$R$68<>"")*ISEVEN(COLUMN($L$8:$R$8)),{1;1;1;1;1;1;1}))*(ROW(Лист1!$L$9:$L$68)>TRANSPOSE(ROW(Лист1!$L$9:$L$68))),ROW(Лист1!$L$9:$L$68)^0),Лист1!$K$9:$K$68) -> 11 | D17: =INDEX(Лист1!$A$9:$A$68,$H17) -> 0 | E17: =INDEX(Лист1!$B$9:$B$68,$H17) -> 0 | F17: =INDEX(Лист1!$C$9:$C$68,$H17) -> 0 | G17: =INDEX(Лист1!$D$9:$D$68,$H17) -> 0 | H17: =MATCH(Лист2!C17,Лист1!$K$9:$K$68,) -> 11
A18: =INDEX(Лист1!$K$9:$R$68,H18,COUNTIFS(Лист2!$C$1:$C18,Лист2!$C18)*2) -> СД2.ВС: С-1.4-2 | B18: =INDEX(Лист1!$L$9:$S$68,H18,COUNTIFS(Лист2!$C$1:$C18,Лист2!$C18)*2) -> 12000 | C18: =LOOKUP(ROW()-2,MMULT(TRANSPOSE(MMULT((Лист1!$L$9:$R$68<>"")*ISEVEN(COLUMN($L$8:$R$8)),{1;1;1;1;1;1;1}))*(ROW(Лист1!$L$9:$L$68)>TRANSPOSE(ROW(Лист1!$L$9:$L$68))),ROW(Лист1!$L$9:$L$68)^0),Лист1!$K$9:$K$68) -> 12 | D18: =INDEX(Лист1!$A$9:$A$68,$H18) -> 0 | E18: =INDEX(Лист1!$B$9:$B$68,$H18) -> 0 | F18: =INDEX(Лист1!$C$9:$C$68,$H18) -> 0 | G18: =INDEX(Лист1!$D$9:$D$68,$H18) -> 0 | H18: =MATCH(Лист2!C18,Лист1!$K$9:$K$68,) -> 12
A19: =INDEX(Лист1!$K$9:$R$68,H19,COUNTIFS(Лист2!$C$1:$C19,Лист2!$C19)*2) -> СД2.ВС: С-1.4-3 | B19: =INDEX(Лист1!$L$9:$S$68,H19,COUNTIFS(Лист2!$C$1:$C19,Лист2!$C19)*2) -> 9000 | C19: =LOOKUP(ROW()-2,MMULT(TRANSPOSE(MMULT((Лист1!$L$9:$R$68<>"")*ISEVEN(COLUMN($L$8:$R$8)),{1;1;1;1;1;1;1}))*(ROW(Лист1!$L$9:$L$68)>TRANSPOSE(ROW(Лист1!$L$9:$L$68))),ROW(Лист1!$L$9:$L$68)^0),Лист1!$K$9:$K$68) -> 13 | D19: =INDEX(Лист1!$A$9:$A$68,$H19) -> 0 | E19: =INDEX(Лист1!$B$9:$B$68,$H19) -> 0 | F19: =INDEX(Лист1!$C$9:$C$68,$H19) -> 0 | G19: =INDEX(Лист1!$D$9:$D$68,$H19) -> 0 | H19: =MATCH(Лист2!C19,Лист1!$K$9:$K$68,) -> 13
A20: =INDEX(Лист1!$K$9:$R$68,H20,COUNTIFS(Лист2!$C$1:$C20,Лист2!$C20)*2) -> СД2.ВС: С-1.5-1 | B20: =INDEX(Лист1!$L$9:$S$68,H20,COUNTIFS(Лист2!$C$1:$C20,Лист2!$C20)*2) -> 4500 | C20: =LOOKUP(ROW()-2,MMULT(TRANSPOSE(MMULT((Лист1!$L$9:$R$68<>"")*ISEVEN(COLUMN($L$8:$R$8)),{1;1;1;1;1;1;1}))*(ROW(Лист1!$L$9:$L$68)>TRANSPOSE(ROW(Лист1!$L$9:$L$68))),ROW(Лист1!$L$9:$L$68)^0),Лист1!$K$9:$K$68) -> 14 | D20: =INDEX(Лист1!$A$9:$A$68,$H20) -> 0 | E20: =INDEX(Лист1!$B$9:$B$68,$H20) -> 0 | F20: =INDEX(Лист1!$C$9:$C$68,$H20) -> 0 | G20: =INDEX(Лист1!$D$9:$D$68,$H20) -> 0 | H20: =MATCH(Лист2!C20,Лист1!$K$9:$K$68,) -> 14
A21: =INDEX(Лист1!$K$9:$R$68,H21,COUNTIFS(Лист2!$C$1:$C21,Лист2!$C21)*2) -> СД2.ВС: С-1.6-1 | B21: =INDEX(Лист1!$L$9:$S$68,H21,COUNTIFS(Лист2!$C$1:$C21,Лист2!$C21)*2) -> 7500 | C21: =LOOKUP(ROW()-2,MMULT(TRANSPOSE(MMULT((Лист1!$L$9:$R$68<>"")*ISEVEN(COLUMN($L$8:$R$8)),{1;1;1;1;1;1;1}))*(ROW(Лист1!$L$9:$L$68)>TRANSPOSE(ROW(Лист1!$L$9:$L$68))),ROW(Лист1!$L$9:$L$68)^0),Лист1!$K$9:$K$68) -> 14 | D21: =INDEX(Лист1!$A$9:$A$68,$H21) -> 0 | E21: =INDEX(Лист1!$B$9:$B$68,$H21) -> 0 | F21: =INDEX(Лист1!$C$9:$C$68,$H21) -> 0 | G21: =INDEX(Лист1!$D$9:$D$68,$H21) -> 0 | H21: =MATCH(Лист2!C21,Лист1!$K$9:$K$68,) -> 14
A22: =INDEX(Лист1!$K$9:$R$68,H22,COUNTIFS(Лист2!$C$1:$C22,Лист2!$C22)*2) -> СД2.ВС: С-1.5-2 | B22: =INDEX(Лист1!$L$9:$S$68,H22,COUNTIFS(Лист2!$C$1:$C22,Лист2!$C22)*2) -> 12000 | C22: =LOOKUP(ROW()-2,MMULT(TRANSPOSE(MMULT((Лист1!$L$9:$R$68<>"")*ISEVEN(COLUMN($L$8:$R$8)),{1;1;1;1;1;1;1}))*(ROW(Лист1!$L$9:$L$68)>TRANSPOSE(ROW(Лист1!$L$9:$L$68))),ROW(Лист1!$L$9:$L$68)^0),Лист1!$K$9:$K$68) -> 15 | D22: =INDEX(Лист1!$A$9:$A$68,$H22) -> 0 | E22: =INDEX(Лист1!$B$9:$B$68,$H22) -> 0 | F22: =INDEX(Лист1!$C$9:$C$68,$H22) -> 0 | G22: =INDEX(Лист1!$D$9:$D$68,$H22) -> 0 | H22: =MATCH(Лист2!C22,Лист1!$K$9:$K$68,) -> 15
A23: =INDEX(Лист1!$K$9:$R$68,H23,COUNTIFS(Лист2!$C$1:$C23,Лист2!$C23)*2) -> СД2.ВС: С-1.5-3 | B23: =INDEX(Лист1!$L$9:$S$68,H23,COUNTIFS(Лист2!$C$1:$C23,Лист2!$C23)*2) -> 12000 | C23: =LOOKUP(ROW()-2,MMULT(TRANSPOSE(MMULT((Лист1!$L$9:$R$68<>"")*ISEVEN(COLUMN($L$8:$R$8)),{1;1;1;1;1;1;1}))*(ROW(Лист1!$L$9:$L$68)>TRANSPOSE(ROW(Лист1!$L$9:$L$68))),ROW(Лист1!$L$9:$L$68)^0),Лист1!$K$9:$K$68) -> 16 | D23: =INDEX(Лист1!$A$9:$A$68,$H23) -> 0 | E23: =INDEX(Лист1!$B$9:$B$68,$H23) -> 0 | F23: =INDEX(Лист1!$C$9:$C$68,$H23) -> 0 | G23: =INDEX(Лист1!$D$9:$D$68,$H23) -> 0 | H23: =MATCH(Лист2!C23,Лист1!$K$9:$K$68,) -> 16
A24: =INDEX(Лист1!$K$9:$R$68,H24,COUNTIFS(Лист2!$C$1:$C24,Лист2!$C24)*2) -> СД2.ВС: С-1.6-2 | B24: =INDEX(Лист1!$L$9:$S$68,H24,COUNTIFS(Лист2!$C$1:$C24,Лист2!$C24)*2) -> 12000 | C24: =LOOKUP(ROW()-2,MMULT(TRANSPOSE(MMULT((Лист1!$L$9:$R$68<>"")*ISEVEN(COLUMN($L$8:$R$8)),{1;1;1;1;1;1;1}))*(ROW(Лист1!$L$9:$L$68)>TRANSPOSE(ROW(Лист1!$L$9:$L$68))),ROW(Лист1!$L$9:$L$68)^0),Лист1!$K$9:$K$68) -> 17 | D24: =INDEX(Лист1!$A$9:$A$68,$H24) -> 0 | E24: =INDEX(Лист1!$B$9:$B$68,$H24) -> 0 | F24: =INDEX(Лист1!$C$9:$C$68,$H24) -> 0 | G24: =INDEX(Лист1!$D$9:$D$68,$H24) -> 0 | H24: =MATCH(Лист2!C24,Лист1!$K$9:$K$68,) -> 17
A25: =INDEX(Лист1!$K$9:$R$68,H25,COUNTIFS(Лист2!$C$1:$C25,Лист2!$C25)*2) -> СД2.ВС: С-1.6-3 | B25: =INDEX(Лист1!$L$9:$S$68,H25,COUNTIFS(Лист2!$C$1:$C25,Лист2!$C25)*2) -> 9000 | C25: =LOOKUP(ROW()-2,MMULT(TRANSPOSE(MMULT((Лист1!$L$9:$R$68<>"")*ISEVEN(COLUMN($L$8:$R$8)),{1;1;1;1;1;1;1}))*(ROW(Лист1!$L$9:$L$68)>TRANSPOSE(ROW(Лист1!$L$9:$L$68))),ROW(Лист1!$L$9:$L$68)^0),Лист1!$K$9:$K$68) -> 18 | D25: =INDEX(Лист1!$A$9:$A$68,$H25) -> 0 | E25: =INDEX(Лист1!$B$9:$B$68,$H25) -> 0 | F25: =INDEX(Лист1!$C$9:$C$68,$H25) -> 0 | G25: =INDEX(Лист1!$D$9:$D$68,$H25) -> 0 | H25: =MATCH(Лист2!C25,Лист1!$K$9:$K$68,) -> 18
A26: =INDEX(Лист1!$K$9:$R$68,H26,COUNTIFS(Лист2!$C$1:$C26,Лист2!$C26)*2) -> СД2.ВС: С-1.7-1 | B26: =INDEX(Лист1!$L$9:$S$68,H26,COUNTIFS(Лист2!$C$1:$C26,Лист2!$C26)*2) -> 4500 | C26: =LOOKUP(ROW()-2,MMULT(TRANSPOSE(MMULT((Лист1!$L$9:$R$68<>"")*ISEVEN(COLUMN($L$8:$R$8)),{1;1;1;1;1;1;1}))*(ROW(Лист1!$L$9:$L$68)>TRANSPOSE(ROW(Лист1!$L$9:$L$68))),ROW(Лист1!$L$9:$L$68)^0),Лист1!$K$9:$K$68) -> 19 | D26: =INDEX(Лист1!$A$9:$A$68,$H26) -> 0 | E26: =INDEX(Лист1!$B$9:$B$68,$H26) -> 0 | F26: =INDEX(Лист1!$C$9:$C$68,$H26) -> 0 | G26: =INDEX(Лист1!$D$9:$D$68,$H26) -> 0 | H26: =MATCH(Лист2!C26,Лист1!$K$9:$K$68,) -> 19
A27: =INDEX(Лист1!$K$9:$R$68,H27,COUNTIFS(Лист2!$C$1:$C27,Лист2!$C27)*2) -> СД2.ВС: С-1.8-1 | B27: =INDEX(Лист1!$L$9:$S$68,H27,COUNTIFS(Лист2!$C$1:$C27,Лист2!$C27)*2) -> 7500 | C27: =LOOKUP(ROW()-2,MMULT(TRANSPOSE(MMULT((Лист1!$L$9:$R$68<>"")*ISEVEN(COLUMN($L$8:$R$8)),{1;1;1;1;1;1;1}))*(ROW(Лист1!$L$9:$L$68)>TRANSPOSE(ROW(Лист1!$L$9:$L$68))),ROW(Лист1!$L$9:$L$68)^0),Лист1!$K$9:$K$68) -> 19 | D27: =INDEX(Лист1!$A$9:$A$68,$H27) -> 0 | E27: =INDEX(Лист1!$B$9:$B$68,$H27) -> 0 | F27: =INDEX(Лист1!$C$9:$C$68,$H27) -> 0 | G27: =INDEX(Лист1!$D$9:$D$68,$H27) -> 0 | H27: =MATCH(Лист2!C27,Лист1!$K$9:$K$68,) -> 19
A28: =INDEX(Лист1!$K$9:$R$68,H28,COUNTIFS(Лист2!$C$1:$C28,Лист2!$C28)*2) -> СД2.ВС: С-1.7-2 | B28: =INDEX(Лист1!$L$9:$S$68,H28,COUNTIFS(Лист2!$C$1:$C28,Лист2!$C28)*2) -> 12000 | C28: =LOOKUP(ROW()-2,MMULT(TRANSPOSE(MMULT((Лист1!$L$9:$R$68<>"")*ISEVEN(COLUMN($L$8:$R$8)),{1;1;1;1;1;1;1}))*(ROW(Лист1!$L$9:$L$68)>TRANSPOSE(ROW(Лист1!$L$9:$L$68))),ROW(Лист1!$L$9:$L$68)^0),Лист1!$K$9:$K$68) -> 20 | D28: =INDEX(Лист1!$A$9:$A$68,$H28) -> 0 | E28: =INDEX(Лист1!$B$9:$B$68,$H28) -> 0 | F28: =INDEX(Лист1!$C$9:$C$68,$H28) -> 0 | G28: =INDEX(Лист1!$D$9:$D$68,$H28) -> 0 | H28: =MATCH(Лист2!C28,Лист1!$K$9:$K$68,) -> 20
A29: =INDEX(Лист1!$K$9:$R$68,H29,COUNTIFS(Лист2!$C$1:$C29,Лист2!$C29)*2) -> СД2.ВС: С-1.7-3 | B29: =INDEX(Лист1!$L$9:$S$68,H29,COUNTIFS(Лист2!$C$1:$C29,Лист2!$C29)*2) -> 12000 | C29: =LOOKUP(ROW()-2,MMULT(TRANSPOSE(MMULT((Лист1!$L$9:$R$68<>"")*ISEVEN(COLUMN($L$8:$R$8)),{1;1;1;1;1;1;1}))*(ROW(Лист1!$L$9:$L$68)>TRANSPOSE(ROW(Лист1!$L$9:$L$68))),ROW(Лист1!$L$9:$L$68)^0),Лист1!$K$9:$K$68) -> 21 | D29: =INDEX(Лист1!$A$9:$A$68,$H29) -> 0 | E29: =INDEX(Лист1!$B$9:$B$68,$H29) -> 0 | F29: =INDEX(Лист1!$C$9:$C$68,$H29) -> 0 | G29: =INDEX(Лист1!$D$9:$D$68,$H29) -> 0 | H29: =MATCH(Лист2!C29,Лист1!$K$9:$K$68,) -> 21
A30: =INDEX(Лист1!$K$9:$R$68,H30,COUNTIFS(Лист2!$C$1:$C30,Лист2!$C30)*2) -> СД2.ВС: С-1.8-2 | B30: =INDEX(Лист1!$L$9:$S$68,H30,COUNTIFS(Лист2!$C$1:$C30,Лист2!$C30)*2) -> 12000 | C30: =LOOKUP(ROW()-2,MMULT(TRANSPOSE(MMULT((Лист1!$L$9:$R$68<>"")*ISEVEN(COLUMN($L$8:$R$8)),{1;1;1;1;1;1;1}))*(ROW(Лист1!$L$9:$L$68)>TRANSPOSE(ROW(Лист1!$L$9:$L$68))),ROW(Лист1!$L$9:$L$68)^0),Лист1!$K$9:$K$68) -> 22 | D30: =INDEX(Лист1!$A$9:$A$68,$H30) -> 0 | E30: =INDEX(Лист1!$B$9:$B$68,$H30) -> 0 | F30: =INDEX(Лист1!$C$9:$C$68,$H30) -> 0 | G30: =INDEX(Лист1!$D$9:$D$68,$H30) -> 0 | H30: =MATCH(Лист2!C30,Лист1!$K$9:$K$68,) -> 22
A31: =INDEX(Лист1!$K$9:$R$68,H31,COUNTIFS(Лист2!$C$1:$C31,Лист2!$C31)*2) -> СД2.ВС: С-1.8-3 | B31: =INDEX(Лист1!$L$9:$S$68,H31,COUNTIFS(Лист2!$C$1:$C31,Лист2!$C31)*2) -> 9000 | C31: =LOOKUP(ROW()-2,MMULT(TRANSPOSE(MMULT((Лист1!$L$9:$R$68<>"")*ISEVEN(COLUMN($L$8:$R$8)),{1;1;1;1;1;1;1}))*(ROW(Лист1!$L$9:$L$68)>TRANSPOSE(ROW(Лист1!$L$9:$L$68))),ROW(Лист1!$L$9:$L$68)^0),Лист1!$K$9:$K$68) -> 23 | D31: =INDEX(Лист1!$A$9:$A$68,$H31) -> 0 | E31: =INDEX(Лист1!$B$9:$B$68,$H31) -> 0 | F31: =INDEX(Лист1!$C$9:$C$68,$H31) -> 0 | G31: =INDEX(Лист1!$D$9:$D$68,$H31) -> 0 | H31: =MATCH(Лист2!C31,Лист1!$K$9:$K$68,) -> 23
A32: =INDEX(Лист1!$K$9:$R$68,H32,COUNTIFS(Лист2!$C$1:$C32,Лист2!$C32)*2) -> СД2.ВС: С-1.9-1 | B32: =INDEX(Лист1!$L$9:$S$68,H32,COUNTIFS(Лист2!$C$1:$C32,Лист2!$C32)*2) -> 4500 | C32: =LOOKUP(ROW()-2,MMULT(TRANSPOSE(MMULT((Лист1!$L$9:$R$68<>"")*ISEVEN(COLUMN($L$8:$R$8)),{1;1;1;1;1;1;1}))*(ROW(Лист1!$L$9:$L$68)>TRANSPOSE(ROW(Лист1!$L$9:$L$68))),ROW(Лист1!$L$9:$L$68)^0),Лист1!$K$9:$K$68) -> 24 | D32: =INDEX(Лист1!$A$9:$A$68,$H32) -> 0 | E32: =INDEX(Лист1!$B$9:$B$68,$H32) -> 0 | F32: =INDEX(Лист1!$C$9:$C$68,$H32) -> 0 | G32: =INDEX(Лист1!$D$9:$D$68,$H32) -> 0 | H32: =MATCH(Лист2!C32,Лист1!$K$9:$K$68,) -> 24
A33: =INDEX(Лист1!$K$9:$R$68,H33,COUNTIFS(Лист2!$C$1:$C33,Лист2!$C33)*2) -> СД2.ВС: С-1.10-1 | B33: =INDEX(Лист1!$L$9:$S$68,H33,COUNTIFS(Лист2!$C$1:$C33,Лист2!$C33)*2) -> 7500 | C33: =LOOKUP(ROW()-2,MMULT(TRANSPOSE(MMULT((Лист1!$L$9:$R$68<>"")*ISEVEN(COLUMN($L$8:$R$8)),{1;1;1;1;1;1;1}))*(ROW(Лист1!$L$9:$L$68)>TRANSPOSE(ROW(Лист1!$L$9:$L$68))),ROW(Лист1!$L$9:$L$68)^0),Лист1!$K$9:$K$68) -> 24 | D33: =INDEX(Лист1!$A$9:$A$68,$H33) -> 0 | E33: =INDEX(Лист1!$B$9:$B$68,$H33) -> 0 | F33: =INDEX(Лист1!$C$9:$C$68,$H33) -> 0 | G33: =INDEX(Лист1!$D$9:$D$68,$H33) -> 0 | H33: =MATCH(Лист2!C33,Лист1!$K$9:$K$68,) -> 24
A34: =INDEX(Лист1!$K$9:$R$68,H34,COUNTIFS(Лист2!$C$1:$C34,Лист2!$C34)*2) -> СД2.ВС: С-1.9-2 | B34: =INDEX(Лист1!$L$9:$S$68,H34,COUNTIFS(Лист2!$C$1:$C34,Лист2!$C34)*2) -> 12000 | C34: =LOOKUP(ROW()-2,MMULT(TRANSPOSE(MMULT((Лист1!$L$9:$R$68<>"")*ISEVEN(COLUMN($L$8:$R$8)),{1;1;1;1;1;1;1}))*(ROW(Лист1!$L$9:$L$68)>TRANSPOSE(ROW(Лист1!$L$9:$L$68))),ROW(Лист1!$L$9:$L$68)^0),Лист1!$K$9:$K$68) -> 25 | D34: =INDEX(Лист1!$A$9:$A$68,$H34) -> 0 | E34: =INDEX(Лист1!$B$9:$B$68,$H34) -> 0 | F34: =INDEX(Лист1!$C$9:$C$68,$H34) -> 0 | G34: =INDEX(Лист1!$D$9:$D$68,$H34) -> 0 | H34: =MATCH(Лист2!C34,Лист1!$K$9:$K$68,) -> 25
A35: =INDEX(Лист1!$K$9:$R$68,H35,COUNTIFS(Лист2!$C$1:$C35,Лист2!$C35)*2) -> СД2.ВС: С-1.9-3 | B35: =INDEX(Лист1!$L$9:$S$68,H35,COUNTIFS(Лист2!$C$1:$C35,Лист2!$C35)*2) -> 12000 | C35: =LOOKUP(ROW()-2,MMULT(TRANSPOSE(MMULT((Лист1!$L$9:$R$68<>"")*ISEVEN(COLUMN($L$8:$R$8)),{1;1;1;1;1;1;1}))*(ROW(Лист1!$L$9:$L$68)>TRANSPOSE(ROW(Лист1!$L$9:$L$68))),ROW(Лист1!$L$9:$L$68)^0),Лист1!$K$9:$K$68) -> 26 | D35: =INDEX(Лист1!$A$9:$A$68,$H35) -> 0 | E35: =INDEX(Лист1!$B$9:$B$68,$H35) -> 0 | F35: =INDEX(Лист1!$C$9:$C$68,$H35) -> 0 | G35: =INDEX(Лист1!$D$9:$D$68,$H35) -> 0 | H35: =MATCH(Лист2!C35,Лист1!$K$9:$K$68,) -> 26
A36: =INDEX(Лист1!$K$9:$R$68,H36,COUNTIFS(Лист2!$C$1:$C36,Лист2!$C36)*2) -> СД2.ВС: С-1.10-2 | B36: =INDEX(Лист1!$L$9:$S$68,H36,COUNTIFS(Лист2!$C$1:$C36,Лист2!$C36)*2) -> 12000 | C36: =LOOKUP(ROW()-2,MMULT(TRANSPOSE(MMULT((Лист1!$L$9:$R$68<>"")*ISEVEN(COLUMN($L$8:$R$8)),{1;1;1;1;1;1;1}))*(ROW(Лист1!$L$9:$L$68)>TRANSPOSE(ROW(Лист1!$L$9:$L$68))),ROW(Лист1!$L$9:$L$68)^0),Лист1!$K$9:$K$68) -> 27 | D36: =INDEX(Лист1!$A$9:$A$68,$H36) -> 0 | E36: =INDEX(Лист1!$B$9:$B$68,$H36) -> 0 | F36: =INDEX(Лист1!$C$9:$C$68,$H36) -> 0 | G36: =INDEX(Лист1!$D$9:$D$68,$H36) -> 0 | H36: =MATCH(Лист2!C36,Лист1!$K$9:$K$68,) -> 27
A37: =INDEX(Лист1!$K$9:$R$68,H37,COUNTIFS(Лист2!$C$1:$C37,Лист2!$C37)*2) -> СД2.ВС: С-1.10-3 | B37: =INDEX(Лист1!$L$9:$S$68,H37,COUNTIFS(Лист2!$C$1:$C37,Лист2!$C37)*2) -> 9000 | C37: =LOOKUP(ROW()-2,MMULT(TRANSPOSE(MMULT((Лист1!$L$9:$R$68<>"")*ISEVEN(COLUMN($L$8:$R$8)),{1;1;1;1;1;1;1}))*(ROW(Лист1!$L$9:$L$68)>TRANSPOSE(ROW(Лист1!$L$9:$L$68))),ROW(Лист1!$L$9:$L$68)^0),Лист1!$K$9:$K$68) -> 28 | D37: =INDEX(Лист1!$A$9:$A$68,$H37) -> 0 | E37: =INDEX(Лист1!$B$9:$B$68,$H37) -> 0 | F37: =INDEX(Лист1!$C$9:$C$68,$H37) -> 0 | G37: =INDEX(Лист1!$D$9:$D$68,$H37) -> 0 | H37: =MATCH(Лист2!C37,Лист1!$K$9:$K$68,) -> 28
A38: =INDEX(Лист1!$K$9:$R$68,H38,COUNTIFS(Лист2!$C$1:$C38,Лист2!$C38)*2) -> СД2.ВС: С-1.11-1 | B38: =INDEX(Лист1!$L$9:$S$68,H38,COUNTIFS(Лист2!$C$1:$C38,Лист2!$C38)*2) -> 4500 | C38: =LOOKUP(ROW()-2,MMULT(TRANSPOSE(MMULT((Лист1!$L$9:$R$68<>"")*ISEVEN(COLUMN($L$8:$R$8)),{1;1;1;1;1;1;1}))*(ROW(Лист1!$L$9:$L$68)>TRANSPOSE(ROW(Лист1!$L$9:$L$68))),ROW(Лист1!$L$9:$L$68)^0),Лист1!$K$9:$K$68) -> 29 | D38: =INDEX(Лист1!$A$9:$A$68,$H38) -> 0 | E38: =INDEX(Лист1!$B$9:$B$68,$H38) -> 0 | F38: =INDEX(Лист1!$C$9:$C$68,$H38) -> 0 | G38: =INDEX(Лист1!$D$9:$D$68,$H38) -> 0 | H38: =MATCH(Лист2!C38,Лист1!$K$9:$K$68,) -> 29
A39: =INDEX(Лист1!$K$9:$R$68,H39,COUNTIFS(Лист2!$C$1:$C39,Лист2!$C39)*2) -> СД2.ВС: С-1.12-1 | B39: =INDEX(Лист1!$L$9:$S$68,H39,COUNTIFS(Лист2!$C$1:$C39,Лист2!$C39)*2) -> 7500 | C39: =LOOKUP(ROW()-2,MMULT(TRANSPOSE(MMULT((Лист1!$L$9:$R$68<>"")*ISEVEN(COLUMN($L$8:$R$8)),{1;1;1;1;1;1;1}))*(ROW(Лист1!$L$9:$L$68)>TRANSPOSE(ROW(Лист1!$L$9:$L$68))),ROW(Лист1!$L$9:$L$68)^0),Лист1!$K$9:$K$68) -> 29 | D39: =INDEX(Лист1!$A$9:$A$68,$H39) -> 0 | E39: =INDEX(Лист1!$B$9:$B$68,$H39) -> 0 | F39: =INDEX(Лист1!$C$9:$C$68,$H39) -> 0 | G39: =INDEX(Лист1!$D$9:$D$68,$H39) -> 0 | H39: =MATCH(Лист2!C39,Лист1!$K$9:$K$68,) -> 29
A40: =INDEX(Лист1!$K$9:$R$68,H40,COUNTIFS(Лист2!$C$1:$C40,Лист2!$C40)*2) -> СД2.ВС: С-1.11-2 | B40: =INDEX(Лист1!$L$9:$S$68,H40,COUNTIFS(Лист2!$C$1:$C40,Лист2!$C40)*2) -> 12000 | C40: =LOOKUP(ROW()-2,MMULT(TRANSPOSE(MMULT((Лист1!$L$9:$R$68<>"")*ISEVEN(COLUMN($L$8:$R$8)),{1;1;1;1;1;1;1}))*(ROW(Лист1!$L$9:$L$68)>TRANSPOSE(ROW(Лист1!$L$9:$L$68))),ROW(Лист1!$L$9:$L$68)^0),Лист1!$K$9:$K$68) -> 30 | D40: =INDEX(Лист1!$A$9:$A$68,$H40) -> 0 | E40: =INDEX(Лист1!$B$9:$B$68,$H40) -> 0 | F40: =INDEX(Лист1!$C$9:$C$68,$H40) -> 0 | G40: =INDEX(Лист1!$D$9:$D$68,$H40) -> 0 | H40: =MATCH(Лист2!C40,Лист1!$K$9:$K$68,) -> 30
A41: =INDEX(Лист1!$K$9:$R$68,H41,COUNTIFS(Лист2!$C$1:$C41,Лист2!$C41)*2) -> СД2.ВС: С-1.11-3 | B41: =INDEX(Лист1!$L$9:$S$68,H41,COUNTIFS(Лист2!$C$1:$C41,Лист2!$C41)*2) -> 12000 | C41: =LOOKUP(ROW()-2,MMULT(TRANSPOSE(MMULT((Лист1!$L$9:$R$68<>"")*ISEVEN(COLUMN($L$8:$R$8)),{1;1;1;1;1;1;1}))*(ROW(Лист1!$L$9:$L$68)>TRANSPOSE(ROW(Лист1!$L$9:$L$68))),ROW(Лист1!$L$9:$L$68)^0),Лист1!$K$9:$K$68) -> 31 | D41: =INDEX(Лист1!$A$9:$A$68,$H41) -> 0 | E41: =INDEX(Лист1!$B$9:$B$68,$H41) -> 0 | F41: =INDEX(Лист1!$C$9:$C$68,$H41) -> 0 | G41: =INDEX(Лист1!$D$9:$D$68,$H41) -> 0 | H41: =MATCH(Лист2!C41,Лист1!$K$9:$K$68,) -> 31
A42: =INDEX(Лист1!$K$9:$R$68,H42,COUNTIFS(Лист2!$C$1:$C42,Лист2!$C42)*2) -> СД2.ВС: С-1.12-2 | B42: =INDEX(Лист1!$L$9:$S$68,H42,COUNTIFS(Лист2!$C$1:$C42,Лист2!$C42)*2) -> 12000 | C42: =LOOKUP(ROW()-2,MMULT(TRANSPOSE(MMULT((Лист1!$L$9:$R$68<>"")*ISEVEN(COLUMN($L$8:$R$8)),{1;1;1;1;1;1;1}))*(ROW(Лист1!$L$9:$L$68)>TRANSPOSE(ROW(Лист1!$L$9:$L$68))),ROW(Лист1!$L$9:$L$68)^0),Лист1!$K$9:$K$68) -> 32 | D42: =INDEX(Лист1!$A$9:$A$68,$H42) -> 0 | E42: =INDEX(Лист1!$B$9:$B$68,$H42) -> 0 | F42: =INDEX(Лист1!$C$9:$C$68,$H42) -> 0 | G42: =INDEX(Лист1!$D$9:$D$68,$H42) -> 0 | H42: =MATCH(Лист2!C42,Лист1!$K$9:$K$68,) -> 32
A43: =INDEX(Лист1!$K$9:$R$68,H43,COUNTIFS(Лист2!$C$1:$C43,Лист2!$C43)*2) -> СД2.ВС: С-1.12-3 | B43: =INDEX(Лист1!$L$9:$S$68,H43,COUNTIFS(Лист2!$C$1:$C43,Лист2!$C43)*2) -> 9000 | C43: =LOOKUP(ROW()-2,MMULT(TRANSPOSE(MMULT((Лист1!$L$9:$R$68<>"")*ISEVEN(COLUMN($L$8:$R$8)),{1;1;1;1;1;1;1}))*(ROW(Лист1!$L$9:$L$68)>TRANSPOSE(ROW(Лист1!$L$9:$L$68))),ROW(Лист1!$L$9:$L$68)^0),Лист1!$K$9:$K$68) -> 33 | D43: =INDEX(Лист1!$A$9:$A$68,$H43) -> 0 | E43: =INDEX(Лист1!$B$9:$B$68,$H43) -> 0 | F43: =INDEX(Лист1!$C$9:$C$68,$H43) -> 0 | G43: =INDEX(Лист1!$D$9:$D$68,$H43) -> 0 | H43: =MATCH(Лист2!C43,Лист1!$K$9:$K$68,) -> 33
A44: =INDEX(Лист1!$K$9:$R$68,H44,COUNTIFS(Лист2!$C$1:$C44,Лист2!$C44)*2) -> СД2.ВС: С-1.13-1 | B44: =INDEX(Лист1!$L$9:$S$68,H44,COUNTIFS(Лист2!$C$1:$C44,Лист2!$C44)*2) -> 4500 | C44: =LOOKUP(ROW()-2,MMULT(TRANSPOSE(MMULT((Лист1!$L$9:$R$68<>"")*ISEVEN(COLUMN($L$8:$R$8)),{1;1;1;1;1;1;1}))*(ROW(Лист1!$L$9:$L$68)>TRANSPOSE(ROW(Лист1!$L$9:$L$68))),ROW(Лист1!$L$9:$L$68)^0),Лист1!$K$9:$K$68) -> 34 | D44: =INDEX(Лист1!$A$9:$A$68,$H44) -> 0 | E44: =INDEX(Лист1!$B$9:$B$68,$H44) -> 0 | F44: =INDEX(Лист1!$C$9:$C$68,$H44) -> 0 | G44: =INDEX(Лист1!$D$9:$D$68,$H44) -> 0 | H44: =MATCH(Лист2!C44,Лист1!$K$9:$K$68,) -> 34
A45: =INDEX(Лист1!$K$9:$R$68,H45,COUNTIFS(Лист2!$C$1:$C45,Лист2!$C45)*2) -> СД2.ВС: С-1.14-1 | B45: =INDEX(Лист1!$L$9:$S$68,H45,COUNTIFS(Лист2!$C$1:$C45,Лист2!$C45)*2) -> 7500 | C45: =LOOKUP(ROW()-2,MMULT(TRANSPOSE(MMULT((Лист1!$L$9:$R$68<>"")*ISEVEN(COLUMN($L$8:$R$8)),{1;1;1;1;1;1;1}))*(ROW(Лист1!$L$9:$L$68)>TRANSPOSE(ROW(Лист1!$L$9:$L$68))),ROW(Лист1!$L$9:$L$68)^0),Лист1!$K$9:$K$68) -> 34 | D45: =INDEX(Лист1!$A$9:$A$68,$H45) -> 0 | E45: =INDEX(Лист1!$B$9:$B$68,$H45) -> 0 | F45: =INDEX(Лист1!$C$9:$C$68,$H45) -> 0 | G45: =INDEX(Лист1!$D$9:$D$68,$H45) -> 0 | H45: =MATCH(Лист2!C45,Лист1!$K$9:$K$68,) -> 34
A46: =INDEX(Лист1!$K$9:$R$68,H46,COUNTIFS(Лист2!$C$1:$C46,Лист2!$C46)*2) -> СД2.ВС: С-1.13-2 | B46: =INDEX(Лист1!$L$9:$S$68,H46,COUNTIFS(Лист2!$C$1:$C46,Лист2!$C46)*2) -> 12000 | C46: =LOOKUP(ROW()-2,MMULT(TRANSPOSE(MMULT((Лист1!$L$9:$R$68<>"")*ISEVEN(COLUMN($L$8:$R$8)),{1;1;1;1;1;1;1}))*(ROW(Лист1!$L$9:$L$68)>TRANSPOSE(ROW(Лист1!$L$9:$L$68))),ROW(Лист1!$L$9:$L$68)^0),Лист1!$K$9:$K$68) -> 35 | D46: =INDEX(Лист1!$A$9:$A$68,$H46) -> 0 | E46: =INDEX(Лист1!$B$9:$B$68,$H46) -> 0 | F46: =INDEX(Лист1!$C$9:$C$68,$H46) -> 0 | G46: =INDEX(Лист1!$D$9:$D$68,$H46) -> 0 | H46: =MATCH(Лист2!C46,Лист1!$K$9:$K$68,) -> 35
A47: =INDEX(Лист1!$K$9:$R$68,H47,COUNTIFS(Лист2!$C$1:$C47,Лист2!$C47)*2) -> СД2.ВС: С-1.13-3 | B47: =INDEX(Лист1!$L$9:$S$68,H47,COUNTIFS(Лист2!$C$1:$C47,Лист2!$C47)*2) -> 12000 | C47: =LOOKUP(ROW()-2,MMULT(TRANSPOSE(MMULT((Лист1!$L$9:$R$68<>"")*ISEVEN(COLUMN($L$8:$R$8)),{1;1;1;1;1;1;1}))*(ROW(Лист1!$L$9:$L$68)>TRANSPOSE(ROW(Лист1!$L$9:$L$68))),ROW(Лист1!$L$9:$L$68)^0),Лист1!$K$9:$K$68) -> 36 | D47: =INDEX(Лист1!$A$9:$A$68,$H47) -> 0 | E47: =INDEX(Лист1!$B$9:$B$68,$H47) -> 0 | F47: =INDEX(Лист1!$C$9:$C$68,$H47) -> 0 | G47: =INDEX(Лист1!$D$9:$D$68,$H47) -> 0 | H47: =MATCH(Лист2!C47,Лист1!$K$9:$K$68,) -> 36
A48: =INDEX(Лист1!$K$9:$R$68,H48,COUNTIFS(Лист2!$C$1:$C48,Лист2!$C48)*2) -> СД2.ВС: С-1.14-2 | B48: =INDEX(Лист1!$L$9:$S$68,H48,COUNTIFS(Лист2!$C$1:$C48,Лист2!$C48)*2) -> 12000 | C48: =LOOKUP(ROW()-2,MMULT(TRANSPOSE(MMULT((Лист1!$L$9:$R$68<>"")*ISEVEN(COLUMN($L$8:$R$8)),{1;1;1;1;1;1;1}))*(ROW(Лист1!$L$9:$L$68)>TRANSPOSE(ROW(Лист1!$L$9:$L$68))),ROW(Лист1!$L$9:$L$68)^0),Лист1!$K$9:$K$68) -> 37 | D48: =INDEX(Лист1!$A$9:$A$68,$H48) -> 0 | E48: =INDEX(Лист1!$B$9:$B$68,$H48) -> 0 | F48: =INDEX(Лист1!$C$9:$C$68,$H48) -> 0 | G48: =INDEX(Лист1!$D$9:$D$68,$H48) -> 0 | H48: =MATCH(Лист2!C48,Лист1!$K$9:$K$68,) -> 37
A49: =INDEX(Лист1!$K$9:$R$68,H49,COUNTIFS(Лист2!$C$1:$C49,Лист2!$C49)*2) -> СД2.ВС: С-1.14-3 | B49: =INDEX(Лист1!$L$9:$S$68,H49,COUNTIFS(Лист2!$C$1:$C49,Лист2!$C49)*2) -> 9000 | C49: =LOOKUP(ROW()-2,MMULT(TRANSPOSE(MMULT((Лист1!$L$9:$R$68<>"")*ISEVEN(COLUMN($L$8:$R$8)),{1;1;1;1;1;1;1}))*(ROW(Лист1!$L$9:$L$68)>TRANSPOSE(ROW(Лист1!$L$9:$L$68))),ROW(Лист1!$L$9:$L$68)^0),Лист1!$K$9:$K$68) -> 38 | D49: =INDEX(Лист1!$A$9:$A$68,$H49) -> 0 | E49: =INDEX(Лист1!$B$9:$B$68,$H49) -> 0 | F49: =INDEX(Лист1!$C$9:$C$68,$H49) -> 0 | G49: =INDEX(Лист1!$D$9:$D$68,$H49) -> 0 | H49: =MATCH(Лист2!C49,Лист1!$K$9:$K$68,) -> 38
A50: =INDEX(Лист1!$K$9:$R$68,H50,COUNTIFS(Лист2!$C$1:$C50,Лист2!$C50)*2) -> СД2.ВС: С-1.15-1 | B50: =INDEX(Лист1!$L$9:$S$68,H50,COUNTIFS(Лист2!$C$1:$C50,Лист2!$C50)*2) -> 4500 | C50: =LOOKUP(ROW()-2,MMULT(TRANSPOSE(MMULT((Лист1!$L$9:$R$68<>"")*ISEVEN(COLUMN($L$8:$R$8)),{1;1;1;1;1;1;1}))*(ROW(Лист1!$L$9:$L$68)>TRANSPOSE(ROW(Лист1!$L$9:$L$68))),ROW(Лист1!$L$9:$L$68)^0),Лист1!$K$9:$K$68) -> 39 | D50: =INDEX(Лист1!$A$9:$A$68,$H50) -> 0 | E50: =INDEX(Лист1!$B$9:$B$68,$H50) -> 0 | F50: =INDEX(Лист1!$C$9:$C$68,$H50) -> 0 | G50: =INDEX(Лист1!$D$9:$D$68,$H50) -> 0 | H50: =MATCH(Лист2!C50,Лист1!$K$9:$K$68,) -> 39
A51: =INDEX(Лист1!$K$9:$R$68,H51,COUNTIFS(Лист2!$C$1:$C51,Лист2!$C51)*2) -> СД2.ВС: С-1.16-1 | B51: =INDEX(Лист1!$L$9:$S$68,H51,COUNTIFS(Лист2!$C$1:$C51,Лист2!$C51)*2) -> 7500 | C51: =LOOKUP(ROW()-2,MMULT(TRANSPOSE(MMULT((Лист1!$L$9:$R$68<>"")*ISEVEN(COLUMN($L$8:$R$8)),{1;1;1;1;1;1;1}))*(ROW(Лист1!$L$9:$L$68)>TRANSPOSE(ROW(Лист1!$L$9:$L$68))),ROW(Лист1!$L$9:$L$68)^0),Лист1!$K$9:$K$68) -> 39 | D51: =INDEX(Лист1!$A$9:$A$68,$H51) -> 0 | E51: =INDEX(Лист1!$B$9:$B$68,$H51) -> 0 | F51: =INDEX(Лист1!$C$9:$C$68,$H51) -> 0 | G51: =INDEX(Лист1!$D$9:$D$68,$H51) -> 0 | H51: =MATCH(Лист2!C51,Лист1!$K$9:$K$68,) -> 39
A52: =INDEX(Лист1!$K$9:$R$68,H52,COUNTIFS(Лист2!$C$1:$C52,Лист2!$C52)*2) -> СД2.ВС: С-1.15-2 | B52: =INDEX(Лист1!$L$9:$S$68,H52,COUNTIFS(Лист2!$C$1:$C52,Лист2!$C52)*2) -> 12000 | C52: =LOOKUP(ROW()-2,MMULT(TRANSPOSE(MMULT((Лист1!$L$9:$R$68<>"")*ISEVEN(COLUMN($L$8:$R$8)),{1;1;1;1;1;1;1}))*(ROW(Лист1!$L$9:$L$68)>TRANSPOSE(ROW(Лист1!$L$9:$L$68))),ROW(Лист1!$L$9:$L$68)^0),Лист1!$K$9:$K$68) -> 40 | D52: =INDEX(Лист1!$A$9:$A$68,$H52) -> 0 | E52: =INDEX(Лист1!$B$9:$B$68,$H52) -> 0 | F52: =INDEX(Лист1!$C$9:$C$68,$H52) -> 0 | G52: =INDEX(Лист1!$D$9:$D$68,$H52) -> 0 | H52: =MATCH(Лист2!C52,Лист1!$K$9:$K$68,) -> 40
A53: =INDEX(Лист1!$K$9:$R$68,H53,COUNTIFS(Лист2!$C$1:$C53,Лист2!$C53)*2) -> СД2.ВС: С-1.15-3 | B53: =INDEX(Лист1!$L$9:$S$68,H53,COUNTIFS(Лист2!$C$1:$C53,Лист2!$C53)*2) -> 12000 | C53: =LOOKUP(ROW()-2,MMULT(TRANSPOSE(MMULT((Лист1!$L$9:$R$68<>"")*ISEVEN(COLUMN($L$8:$R$8)),{1;1;1;1;1;1;1}))*(ROW(Лист1!$L$9:$L$68)>TRANSPOSE(ROW(Лист1!$L$9:$L$68))),ROW(Лист1!$L$9:$L$68)^0),Лист1!$K$9:$K$68) -> 41 | D53: =INDEX(Лист1!$A$9:$A$68,$H53) -> 0 | E53: =INDEX(Лист1!$B$9:$B$68,$H53) -> 0 | F53: =INDEX(Лист1!$C$9:$C$68,$H53) -> 0 | G53: =INDEX(Лист1!$D$9:$D$68,$H53) -> 0 | H53: =MATCH(Лист2!C53,Лист1!$K$9:$K$68,) -> 41
A54: =INDEX(Лист1!$K$9:$R$68,H54,COUNTIFS(Лист2!$C$1:$C54,Лист2!$C54)*2) -> СД2.ВС: С-1.16-2 | B54: =INDEX(Лист1!$L$9:$S$68,H54,COUNTIFS(Лист2!$C$1:$C54,Лист2!$C54)*2) -> 12000 | C54: =LOOKUP(ROW()-2,MMULT(TRANSPOSE(MMULT((Лист1!$L$9:$R$68<>"")*ISEVEN(COLUMN($L$8:$R$8)),{1;1;1;1;1;1;1}))*(ROW(Лист1!$L$9:$L$68)>TRANSPOSE(ROW(Лист1!$L$9:$L$68))),ROW(Лист1!$L$9:$L$68)^0),Лист1!$K$9:$K$68) -> 42 | D54: =INDEX(Лист1!$A$9:$A$68,$H54) -> 0 | E54: =INDEX(Лист1!$B$9:$B$68,$H54) -> 0 | F54: =INDEX(Лист1!$C$9:$C$68,$H54) -> 0 | G54: =INDEX(Лист1!$D$9:$D$68,$H54) -> 0 | H54: =MATCH(Лист2!C54,Лист1!$K$9:$K$68,) -> 42
A55: =INDEX(Лист1!$K$9:$R$68,H55,COUNTIFS(Лист2!$C$1:$C55,Лист2!$C55)*2) -> СД2.ВС: С-1.16-3 | B55: =INDEX(Лист1!$L$9:$S$68,H55,COUNTIFS(Лист2!$C$1:$C55,Лист2!$C55)*2) -> 9000 | C55: =LOOKUP(ROW()-2,MMULT(TRANSPOSE(MMULT((Лист1!$L$9:$R$68<>"")*ISEVEN(COLUMN($L$8:$R$8)),{1;1;1;1;1;1;1}))*(ROW(Лист1!$L$9:$L$68)>TRANSPOSE(ROW(Лист1!$L$9:$L$68))),ROW(Лист1!$L$9:$L$68)^0),Лист1!$K$9:$K$68) -> 43 | D55: =INDEX(Лист1!$A$9:$A$68,$H55) -> 0 | E55: =INDEX(Лист1!$B$9:$B$68,$H55) -> 0 | F55: =INDEX(Лист1!$C$9:$C$68,$H55) -> 0 | G55: =INDEX(Лист1!$D$9:$D$68,$H55) -> 0 | H55: =MATCH(Лист2!C55,Лист1!$K$9:$K$68,) -> 43
A56: =INDEX(Лист1!$K$9:$R$68,H56,COUNTIFS(Лист2!$C$1:$C56,Лист2!$C56)*2) -> СД2.ВС: С-1.17-1 | B56: =INDEX(Лист1!$L$9:$S$68,H56,COUNTIFS(Лист2!$C$1:$C56,Лист2!$C56)*2) -> 4500 | C56: =LOOKUP(ROW()-2,MMULT(TRANSPOSE(MMULT((Лист1!$L$9:$R$68<>"")*ISEVEN(COLUMN($L$8:$R$8)),{1;1;1;1;1;1;1}))*(ROW(Лист1!$L$9:$L$68)>TRANSPOSE(ROW(Лист1!$L$9:$L$68))),ROW(Лист1!$L$9:$L$68)^0),Лист1!$K$9:$K$68) -> 44 | D56: =INDEX(Лист1!$A$9:$A$68,$H56) -> 0 | E56: =INDEX(Лист1!$B$9:$B$68,$H56) -> 0 | F56: =INDEX(Лист1!$C$9:$C$68,$H56) -> 0 | G56: =INDEX(Лист1!$D$9:$D$68,$H56) -> 0 | H56: =MATCH(Лист2!C56,Лист1!$K$9:$K$68,) -> 44
A57: =INDEX(Лист1!$K$9:$R$68,H57,COUNTIFS(Лист2!$C$1:$C57,Лист2!$C57)*2) -> СД2.ВС: С-1.18-1 | B57: =INDEX(Лист1!$L$9:$S$68,H57,COUNTIFS(Лист2!$C$1:$C57,Лист2!$C57)*2) -> 7500 | C57: =LOOKUP(ROW()-2,MMULT(TRANSPOSE(MMULT((Лист1!$L$9:$R$68<>"")*ISEVEN(COLUMN($L$8:$R$8)),{1;1;1;1;1;1;1}))*(ROW(Лист1!$L$9:$L$68)>TRANSPOSE(ROW(Лист1!$L$9:$L$68))),ROW(Лист1!$L$9:$L$68)^0),Лист1!$K$9:$K$68) -> 44 | D57: =INDEX(Лист1!$A$9:$A$68,$H57) -> 0 | E57: =INDEX(Лист1!$B$9:$B$68,$H57) -> 0 | F57: =INDEX(Лист1!$C$9:$C$68,$H57) -> 0 | G57: =INDEX(Лист1!$D$9:$D$68,$H57) -> 0 | H57: =MATCH(Лист2!C57,Лист1!$K$9:$K$68,) -> 44
A58: =INDEX(Лист1!$K$9:$R$68,H58,COUNTIFS(Лист2!$C$1:$C58,Лист2!$C58)*2) -> СД2.ВС: С-1.17-2 | B58: =INDEX(Лист1!$L$9:$S$68,H58,COUNTIFS(Лист2!$C$1:$C58,Лист2!$C58)*2) -> 12000 | C58: =LOOKUP(ROW()-2,MMULT(TRANSPOSE(MMULT((Лист1!$L$9:$R$68<>"")*ISEVEN(COLUMN($L$8:$R$8)),{1;1;1;1;1;1;1}))*(ROW(Лист1!$L$9:$L$68)>TRANSPOSE(ROW(Лист1!$L$9:$L$68))),ROW(Лист1!$L$9:$L$68)^0),Лист1!$K$9:$K$68) -> 45 | D58: =INDEX(Лист1!$A$9:$A$68,$H58) -> 0 | E58: =INDEX(Лист1!$B$9:$B$68,$H58) -> 0 | F58: =INDEX(Лист1!$C$9:$C$68,$H58) -> 0 | G58: =INDEX(Лист1!$D$9:$D$68,$H58) -> 0 | H58: =MATCH(Лист2!C58,Лист1!$K$9:$K$68,) -> 45
A59: =INDEX(Лист1!$K$9:$R$68,H59,COUNTIFS(Лист2!$C$1:$C59,Лист2!$C59)*2) -> СД2.ВС: С-1.17-3 | B59: =INDEX(Лист1!$L$9:$S$68,H59,COUNTIFS(Лист2!$C$1:$C59,Лист2!$C59)*2) -> 12000 | C59: =LOOKUP(ROW()-2,MMULT(TRANSPOSE(MMULT((Лист1!$L$9:$R$68<>"")*ISEVEN(COLUMN($L$8:$R$8)),{1;1;1;1;1;1;1}))*(ROW(Лист1!$L$9:$L$68)>TRANSPOSE(ROW(Лист1!$L$9:$L$68))),ROW(Лист1!$L$9:$L$68)^0),Лист1!$K$9:$K$68) -> 46 | D59: =INDEX(Лист1!$A$9:$A$68,$H59) -> 0 | E59: =INDEX(Лист1!$B$9:$B$68,$H59) -> 0 | F59: =INDEX(Лист1!$C$9:$C$68,$H59) -> 0 | G59: =INDEX(Лист1!$D$9:$D$68,$H59) -> 0 | H59: =MATCH(Лист2!C59,Лист1!$K$9:$K$68,) -> 46
A60: =INDEX(Лист1!$K$9:$R$68,H60,COUNTIFS(Лист2!$C$1:$C60,Лист2!$C60)*2) -> СД2.ВС: С-1.18-2 | B60: =INDEX(Лист1!$L$9:$S$68,H60,COUNTIFS(Лист2!$C$1:$C60,Лист2!$C60)*2) -> 12000 | C60: =LOOKUP(ROW()-2,MMULT(TRANSPOSE(MMULT((Лист1!$L$9:$R$68<>"")*ISEVEN(COLUMN($L$8:$R$8)),{1;1;1;1;1;1;1}))*(ROW(Лист1!$L$9:$L$68)>TRANSPOSE(ROW(Лист1!$L$9:$L$68))),ROW(Лист1!$L$9:$L$68)^0),Лист1!$K$9:$K$68) -> 47 | D60: =INDEX(Лист1!$A$9:$A$68,$H60) -> 0 | E60: =INDEX(Лист1!$B$9:$B$68,$H60) -> 0 | F60: =INDEX(Лист1!$C$9:$C$68,$H60) -> 0 | G60: =INDEX(Лист1!$D$9:$D$68,$H60) -> 0 | H60: =MATCH(Лист2!C60,Лист1!$K$9:$K$68,) -> 47
A61: =INDEX(Лист1!$K$9:$R$68,H61,COUNTIFS(Лист2!$C$1:$C61,Лист2!$C61)*2) -> СД2.ВС: С-1.18-3 | B61: =INDEX(Лист1!$L$9:$S$68,H61,COUNTIFS(Лист2!$C$1:$C61,Лист2!$C61)*2) -> 9000 | C61: =LOOKUP(ROW()-2,MMULT(TRANSPOSE(MMULT((Лист1!$L$9:$R$68<>"")*ISEVEN(COLUMN($L$8:$R$8)),{1;1;1;1;1;1;1}))*(ROW(Лист1!$L$9:$L$68)>TRANSPOSE(ROW(Лист1!$L$9:$L$68))),ROW(Лист1!$L$9:$L$68)^0),Лист1!$K$9:$K$68) -> 48 | D61: =INDEX(Лист1!$A$9:$A$68,$H61) -> 0 | E61: =INDEX(Лист1!$B$9:$B$68,$H61) -> 0 | F61: =INDEX(Лист1!$C$9:$C$68,$H61) -> 0 | G61: =INDEX(Лист1!$D$9:$D$68,$H61) -> 0 | H61: =MATCH(Лист2!C61,Лист1!$K$9:$K$68,) -> 48
A62: =INDEX(Лист1!$K$9:$R$68,H62,COUNTIFS(Лист2!$C$1:$C62,Лист2!$C62)*2) -> СД2.ВС: С-1.19-1 | B62: =INDEX(Лист1!$L$9:$S$68,H62,COUNTIFS(Лист2!$C$1:$C62,Лист2!$C62)*2) -> 4500 | C62: =LOOKUP(ROW()-2,MMULT(TRANSPOSE(MMULT((Лист1!$L$9:$R$68<>"")*ISEVEN(COLUMN($L$8:$R$8)),{1;1;1;1;1;1;1}))*(ROW(Лист1!$L$9:$L$68)>TRANSPOSE(ROW(Лист1!$L$9:$L$68))),ROW(Лист1!$L$9:$L$68)^0),Лист1!$K$9:$K$68) -> 49 | D62: =INDEX(Лист1!$A$9:$A$68,$H62) -> 0 | E62: =INDEX(Лист1!$B$9:$B$68,$H62) -> 0 | F62: =INDEX(Лист1!$C$9:$C$68,$H62) -> 0 | G62: =INDEX(Лист1!$D$9:$D$68,$H62) -> 0 | H62: =MATCH(Лист2!C62,Лист1!$K$9:$K$68,) -> 49
A63: =INDEX(Лист1!$K$9:$R$68,H63,COUNTIFS(Лист2!$C$1:$C63,Лист2!$C63)*2) -> СД2.ВС: С-1.20-1 | B63: =INDEX(Лист1!$L$9:$S$68,H63,COUNTIFS(Лист2!$C$1:$C63,Лист2!$C63)*2) -> 7500 | C63: =LOOKUP(ROW()-2,MMULT(TRANSPOSE(MMULT((Лист1!$L$9:$R$68<>"")*ISEVEN(COLUMN($L$8:$R$8)),{1;1;1;1;1;1;1}))*(ROW(Лист1!$L$9:$L$68)>TRANSPOSE(ROW(Лист1!$L$9:$L$68))),ROW(Лист1!$L$9:$L$68)^0),Лист1!$K$9:$K$68) -> 49 | D63: =INDEX(Лист1!$A$9:$A$68,$H63) -> 0 | E63: =INDEX(Лист1!$B$9:$B$68,$H63) -> 0 | F63: =INDEX(Лист1!$C$9:$C$68,$H63) -> 0 | G63: =INDEX(Лист1!$D$9:$D$68,$H63) -> 0 | H63: =MATCH(Лист2!C63,Лист1!$K$9:$K$68,) -> 49
A64: =INDEX(Лист1!$K$9:$R$68,H64,COUNTIFS(Лист2!$C$1:$C64,Лист2!$C64)*2) -> СД2.ВС: С-1.19-2 | B64: =INDEX(Лист1!$L$9:$S$68,H64,COUNTIFS(Лист2!$C$1:$C64,Лист2!$C64)*2) -> 12000 | C64: =LOOKUP(ROW()-2,MMULT(TRANSPOSE(MMULT((Лист1!$L$9:$R$68<>"")*ISEVEN(COLUMN($L$8:$R$8)),{1;1;1;1;1;1;1}))*(ROW(Лист1!$L$9:$L$68)>TRANSPOSE(ROW(Лист1!$L$9:$L$68))),ROW(Лист1!$L$9:$L$68)^0),Лист1!$K$9:$K$68) -> 50 | D64: =INDEX(Лист1!$A$9:$A$68,$H64) -> 0 | E64: =INDEX(Лист1!$B$9:$B$68,$H64) -> 0 | F64: =INDEX(Лист1!$C$9:$C$68,$H64) -> 0 | G64: =INDEX(Лист1!$D$9:$D$68,$H64) -> 0 | H64: =MATCH(Лист2!C64,Лист1!$K$9:$K$68,) -> 50
A65: =INDEX(Лист1!$K$9:$R$68,H65,COUNTIFS(Лист2!$C$1:$C65,Лист2!$C65)*2) -> СД2.ВС: С-1.19-3 | B65: =INDEX(Лист1!$L$9:$S$68,H65,COUNTIFS(Лист2!$C$1:$C65,Лист2!$C65)*2) -> 12000 | C65: =LOOKUP(ROW()-2,MMULT(TRANSPOSE(MMULT((Лист1!$L$9:$R$68<>"")*ISEVEN(COLUMN($L$8:$R$8)),{1;1;1;1;1;1;1}))*(ROW(Лист1!$L$9:$L$68)>TRANSPOSE(ROW(Лист1!$L$9:$L$68))),ROW(Лист1!$L$9:$L$68)^0),Лист1!$K$9:$K$68) -> 51 | D65: =INDEX(Лист1!$A$9:$A$68,$H65) -> 0 | E65: =INDEX(Лист1!$B$9:$B$68,$H65) -> 0 | F65: =INDEX(Лист1!$C$9:$C$68,$H65) -> 0 | G65: =INDEX(Лист1!$D$9:$D$68,$H65) -> 0 | H65: =MATCH(Лист2!C65,Лист1!$K$9:$K$68,) -> 51
A66: =INDEX(Лист1!$K$9:$R$68,H66,COUNTIFS(Лист2!$C$1:$C66,Лист2!$C66)*2) -> СД2.ВС: С-1.20-2 | B66: =INDEX(Лист1!$L$9:$S$68,H66,COUNTIFS(Лист2!$C$1:$C66,Лист2!$C66)*2) -> 12000 | C66: =LOOKUP(ROW()-2,MMULT(TRANSPOSE(MMULT((Лист1!$L$9:$R$68<>"")*ISEVEN(COLUMN($L$8:$R$8)),{1;1;1;1;1;1;1}))*(ROW(Лист1!$L$9:$L$68)>TRANSPOSE(ROW(Лист1!$L$9:$L$68))),ROW(Лист1!$L$9:$L$68)^0),Лист1!$K$9:$K$68) -> 52 | D66: =INDEX(Лист1!$A$9:$A$68,$H66) -> 0 | E66: =INDEX(Лист1!$B$9:$B$68,$H66) -> 0 | F66: =INDEX(Лист1!$C$9:$C$68,$H66) -> 0 | G66: =INDEX(Лист1!$D$9:$D$68,$H66) -> 0 | H66: =MATCH(Лист2!C66,Лист1!$K$9:$K$68,) -> 52
A67: =INDEX(Лист1!$K$9:$R$68,H67,COUNTIFS(Лист2!$C$1:$C67,Лист2!$C67)*2) -> СД2.ВС: С-1.20-3 | B67: =INDEX(Лист1!$L$9:$S$68,H67,COUNTIFS(Лист2!$C$1:$C67,Лист2!$C67)*2) -> 9000 | C67: =LOOKUP(ROW()-2,MMULT(TRANSPOSE(MMULT((Лист1!$L$9:$R$68<>"")*ISEVEN(COLUMN($L$8:$R$8)),{1;1;1;1;1;1;1}))*(ROW(Лист1!$L$9:$L$68)>TRANSPOSE(ROW(Лист1!$L$9:$L$68))),ROW(Лист1!$L$9:$L$68)^0),Лист1!$K$9:$K$68) -> 53 | D67: =INDEX(Лист1!$A$9:$A$68,$H67) -> 0 | E67: =INDEX(Лист1!$B$9:$B$68,$H67) -> 0 | F67: =INDEX(Лист1!$C$9:$C$68,$H67) -> 0 | G67: =INDEX(Лист1!$D$9:$D$68,$H67) -> 0 | H67: =MATCH(Лист2!C67,Лист1!$K$9:$K$68,) -> 53
A68: =INDEX(Лист1!$K$9:$R$68,H68,COUNTIFS(Лист2!$C$1:$C68,Лист2!$C68)*2) -> СД2.ВС: С-1.21-2 | B68: =INDEX(Лист1!$L$9:$S$68,H68,COUNTIFS(Лист2!$C$1:$C68,Лист2!$C68)*2) -> 12000 | C68: =LOOKUP(ROW()-2,MMULT(TRANSPOSE(MMULT((Лист1!$L$9:$R$68<>"")*ISEVEN(COLUMN($L$8:$R$8)),{1;1;1;1;1;1;1}))*(ROW(Лист1!$L$9:$L$68)>TRANSPOSE(ROW(Лист1!$L$9:$L$68))),ROW(Лист1!$L$9:$L$68)^0),Лист1!$K$9:$K$68) -> 54 | D68: =INDEX(Лист1!$A$9:$A$68,$H68) -> 0 | E68: =INDEX(Лист1!$B$9:$B$68,$H68) -> 0 | F68: =INDEX(Лист1!$C$9:$C$68,$H68) -> 0 | G68: =INDEX(Лист1!$D$9:$D$68,$H68) -> 0 | H68: =MATCH(Лист2!C68,Лист1!$K$9:$K$68,) -> 54
A69: =INDEX(Лист1!$K$9:$R$68,H69,COUNTIFS(Лист2!$C$1:$C69,Лист2!$C69)*2) -> СД2.ВС: С-1.21-3 | B69: =INDEX(Лист1!$L$9:$S$68,H69,COUNTIFS(Лист2!$C$1:$C69,Лист2!$C69)*2) -> 12000 | C69: =LOOKUP(ROW()-2,MMULT(TRANSPOSE(MMULT((Лист1!$L$9:$R$68<>"")*ISEVEN(COLUMN($L$8:$R$8)),{1;1;1;1;1;1;1}))*(ROW(Лист1!$L$9:$L$68)>TRANSPOSE(ROW(Лист1!$L$9:$L$68))),ROW(Лист1!$L$9:$L$68)^0),Лист1!$K$9:$K$68) -> 55 | D69: =INDEX(Лист1!$A$9:$A$68,$H69) -> 0 | E69: =INDEX(Лист1!$B$9:$B$68,$H69) -> 0 | F69: =INDEX(Лист1!$C$9:$C$68,$H69) -> 0 | G69: =INDEX(Лист1!$D$9:$D$68,$H69) -> 0 | H69: =MATCH(Лист2!C69,Лист1!$K$9:$K$68,) -> 55
A70: =INDEX(Лист1!$K$9:$R$68,H70,COUNTIFS(Лист2!$C$1:$C70,Лист2!$C70)*2) -> СД2.ВС: С-2.1-1 | B70: =INDEX(Лист1!$L$9:$S$68,H70,COUNTIFS(Лист2!$C$1:$C70,Лист2!$C70)*2) -> 4500 | C70: =LOOKUP(ROW()-2,MMULT(TRANSPOSE(MMULT((Лист1!$L$9:$R$68<>"")*ISEVEN(COLUMN($L$8:$R$8)),{1;1;1;1;1;1;1}))*(ROW(Лист1!$L$9:$L$68)>TRANSPOSE(ROW(Лист1!$L$9:$L$68))),ROW(Лист1!$L$9:$L$68)^0),Лист1!$K$9:$K$68) -> 56 | D70: =INDEX(Лист1!$A$9:$A$68,$H70) -> 0 | E70: =INDEX(Лист1!$B$9:$B$68,$H70) -> 0 | F70: =INDEX(Лист1!$C$9:$C$68,$H70) -> 0 | G70: =INDEX(Лист1!$D$9:$D$68,$H70) -> 0 | H70: =MATCH(Лист2!C70,Лист1!$K$9:$K$68,) -> 56
A71: =INDEX(Лист1!$K$9:$R$68,H71,COUNTIFS(Лист2!$C$1:$C71,Лист2!$C71)*2) -> СД2.ВС: С-2.2-1 | B71: =INDEX(Лист1!$L$9:$S$68,H71,COUNTIFS(Лист2!$C$1:$C71,Лист2!$C71)*2) -> 7500 | C71: =LOOKUP(ROW()-2,MMULT(TRANSPOSE(MMULT((Лист1!$L$9:$R$68<>"")*ISEVEN(COLUMN($L$8:$R$8)),{1;1;1;1;1;1;1}))*(ROW(Лист1!$L$9:$L$68)>TRANSPOSE(ROW(Лист1!$L$9:$L$68))),ROW(Лист1!$L$9:$L$68)^0),Лист1!$K$9:$K$68) -> 56 | D71: =INDEX(Лист1!$A$9:$A$68,$H71) -> 0 | E71: =INDEX(Лист1!$B$9:$B$68,$H71) -> 0 | F71: =INDEX(Лист1!$C$9:$C$68,$H71) -> 0 | G71: =INDEX(Лист1!$D$9:$D$68,$H71) -> 0 | H71: =MATCH(Лист2!C71,Лист1!$K$9:$K$68,) -> 56
A72: =INDEX(Лист1!$K$9:$R$68,H72,COUNTIFS(Лист2!$C$1:$C72,Лист2!$C72)*2) -> СД2.ВС: С-2.1-2 | B72: =INDEX(Лист1!$L$9:$S$68,H72,COUNTIFS(Лист2!$C$1:$C72,Лист2!$C72)*2) -> 12000 | C72: =LOOKUP(ROW()-2,MMULT(TRANSPOSE(MMULT((Лист1!$L$9:$R$68<>"")*ISEVEN(COLUMN($L$8:$R$8)),{1;1;1;1;1;1;1}))*(ROW(Лист1!$L$9:$L$68)>TRANSPOSE(ROW(Лист1!$L$9:$L$68))),ROW(Лист1!$L$9:$L$68)^0),Лист1!$K$9:$K$68) -> 57 | D72: =INDEX(Лист1!$A$9:$A$68,$H72) -> 0 | E72: =INDEX(Лист1!$B$9:$B$68,$H72) -> 0 | F72: =INDEX(Лист1!$C$9:$C$68,$H72) -> 0 | G72: =INDEX(Лист1!$D$9:$D$68,$H72) -> 0 | H72: =MATCH(Лист2!C72,Лист1!$K$9:$K$68,) -> 57
A73: =INDEX(Лист1!$K$9:$R$68,H73,COUNTIFS(Лист2!$C$1:$C73,Лист2!$C73)*2) ->  | B73: =INDEX(Лист1!$L$9:$S$68,H73,COUNTIFS(Лист2!$C$1:$C73,Лист2!$C73)*2) ->  | C73: =LOOKUP(ROW()-2,MMULT(TRANSPOSE(MMULT((Лист1!$L$9:$R$68<>"")*ISEVEN(COLUMN($L$8:$R$8)),{1;1;1;1;1;1;1}))*(ROW(Лист1!$L$9:$L$68)>TRANSPOSE(ROW(Лист1!$L$9:$L$68))),ROW(Лист1!$L$9:$L$68)^0),Лист1!$K$9:$K$68) -> 0 | D73: =INDEX(Лист1!$A$9:$A$68,$H73) ->  | E73: =INDEX(Лист1!$B$9:$B$68,$H73) ->  | F73: =INDEX(Лист1!$C$9:$C$68,$H73) ->  | G73: =INDEX(Лист1!$D$9:$D$68,$H73) ->  | H73: =MATCH(Лист2!C73,Лист1!$K$9:$K$68,) -> 
A74: =INDEX(Лист1!$K$9:$R$68,H74,COUNTIFS(Лист2!$C$1:$C74,Лист2!$C74)*2) ->  | B74: =INDEX(Лист1!$L$9:$S$68,H74,COUNTIFS(Лист2!$C$1:$C74,Лист2!$C74)*2) ->  | C74: =LOOKUP(ROW()-2,MMULT(TRANSPOSE(MMULT((Лист1!$L$9:$R$68<>"")*ISEVEN(COLUMN($L$8:$R$8)),{1;1;1;1;1;1;1}))*(ROW(Лист1!$L$9:$L$68)>TRANSPOSE(ROW(Лист1!$L$9:$L$68))),ROW(Лист1!$L$9:$L$68)^0),Лист1!$K$9:$K$68) -> 0 | D74: =INDEX(Лист1!$A$9:$A$68,$H74) ->  | E74: =INDEX(Лист1!$B$9:$B$68,$H74) ->  | F74: =INDEX(Лист1!$C$9:$C$68,$H74) ->  | G74: =INDEX(Лист1!$D$9:$D$68,$H74) ->  | H74: =MATCH(Лист2!C74,Лист1!$K$9:$K$68,) -> 
